Workbook

Sheet Full Rig
B1: S/V BEATRIX - STANDING RIGGING WORKSHEET | S1: HIDDEN | T1: HIDDEN | U1: HIDDEN | V1: HIDDEN | W1: HIDDEN | X1: HIDDEN | Y1: HIDDEN | Z1: HIDDEN | AA1: HIDDEN | AB1: HIDDEN | AC1: HIDDEN | AD1: HIDDEN | AE1: HIDDEN | AF1: HIDDEN | AG1: HIDDEN | AH1: HIDDEN | AI1: HIDDEN | AJ1: HIDDEN | AK1: HIDDEN | AL1: HIDDEN | AM1: LAST
S2: Supplier Column Index = | T2: 4
B3: =CONCATENATE("RIG TYPE: "," 2-SPREADER ",UPPER(current_saved_config_type)," - ",VLOOKUP(current_config_lookup_value,save_meta,2)) -> RIG TYPE: 2-SPREADER DISCONTINUOUS RIGGING - All Hi-Mod 10mm-Compact Strand V1 Swaged forestay | S3: Rigging Type Selection = | T3: Discontinuous Rigging
B4: Item | C4: Quantity | D4: Wire Size | E4: Length (m) | F4: Pin (Eye) Size | G4: Top Terminal | H4: Cost | I4: Bottom Terminal | J4: Cost | K4: Top Toggle | L4: Cost | M4: Bottom Toggle | N4: Cost | O4: Fitting Cost | P4: Wire Cost (w/GST) | Q4: Fitting + Wire Cost | S4: Top Toggle File | T4: Top Terminal File | U4: Bottom Terminal File | V4: Bottom Toggle File | W4: Wire Length | X4: TYPE | Z4: TYPE VAL | AA4: QTY | AB4: LABEL1 | AC4: LABEL2 | AD4: LABEL3 | AE4: LABEL4
B5: Discontinuous Cap Shroud: D3 + V2 (top seg) | C5: 2 | D5: 10mm | E5: 10.2 | F5: 5/8" | G5: 58CTEM10 | H5: =IF(ISNA(VLOOKUP(G5,components,colndx,FALSE)),0,VLOOKUP(G5,components,colndx,FALSE)) -> 92.33 | I5: 58CTEM10 | J5: =IF(ISNA(VLOOKUP(I5,components,colndx,FALSE)),0,VLOOKUP(I5,components,colndx,FALSE)) -> 92.33 | L5: =IF(ISNA(VLOOKUP(K5,components,colndx,FALSE)),0,VLOOKUP(K5,components,colndx,FALSE)) -> 0 | N5: =IF(ISNA(VLOOKUP(M5,components,colndx,FALSE)),0,VLOOKUP(M5,components,colndx,FALSE)) -> 0 | O5: =(C5*(H5+J5+L5+N5))*Y5 -> 369.32 | P5: =IF(C5,VLOOKUP(D5,wire_cost_table,6,FALSE)*E5*C5*1.1*(1+len_margin),0) -> 164.934 | Q5: =P5+O5 -> 534.254 | S5: =IF(ISNA(VLOOKUP(K5,image_lookup,image_lookup_column,FALSE)),"blank",VLOOKUP(K5,image_lookup,image_lookup_column,FALSE)) -> blank | T5: =IF(ISNA(VLOOKUP(G5,image_lookup,image_lookup_column,FALSE)),"blank",VLOOKUP(G5,image_lookup,image_lookup_column,FALSE)) -> Hi-Mod_compression_eye.jpg | U5: =IF(ISNA(VLOOKUP(I5,image_lookup,image_lookup_column,FALSE)),"blank",SUBSTITUTE(VLOOKUP(I5,image_lookup,image_lookup_column,FALSE),".jpg","_r.jpg")) -> Hi-Mod_compression_eye_r.jpg | V5: =IF(ISNA(VLOOKUP(M5,image_lookup,image_lookup_column,FALSE)),"blank",SUBSTITUTE(VLOOKUP(M5,image_lookup,image_lookup_column,FALSE),".jpg","_r.jpg")) -> blank | W5: =E5*C5 -> 20.4 | X5: discontinuous | Y5: TRUE | Z5: =IF(Y5,1,0) -> 1 | AA5: =Z5*C5 -> 2 | AB5: =VLOOKUP(K5,components,16,FALSE) ->  | AC5: =VLOOKUP(G5,components,16,FALSE) -> Hi-Mod Comp Eye 10mm Wire x 5/8" Pin | AD5: =VLOOKUP(I5,components,16,FALSE) -> Hi-Mod Comp Eye 10mm Wire x 5/8" Pin | AE5: =VLOOKUP(M5,components,16,FALSE) ->  | AF5: =C5 -> 2 | AG5: =D5 -> 10mm | AH5: =E5 -> 10.2 | AI5: =F5 -> 5/8" | AJ5: =G5 -> 58CTEM10 | AK5: =I5 -> 58CTEM10 | AL5: =K5 ->  | AM5: =M5 -> 
B6: Discontinuous Cap Shroud: V1 (bottom seg) | C6: 2 | D6: 10mm-D | E6: 5.5 | F6: 5/8" | G6: 58CTEM10-D | H6: 92.33 | I6: 58CTSM10-D | J6: 92.407 | L6: 0 | N6: 0 | O6: =(C6*(H6+J6+L6+N6))*Y6 -> 369.474 | P6: 235.8365625 | Q6: =P6+O6 -> 605.3105625 | S6: blank | T6: Hi-Mod_compression_eye.jpg | U6: Hi-Mod_compresion_stud_r.jpg | V6: blank | W6: =E6*C6 -> 11 | X6: discontinuous | Y6: TRUE | Z6: =IF(Y6,1,0) -> 1 | AA6: =Z6*C6 -> 2 | AC6: Hi-Mod Comp Eye 10mm Dyform Wire x 5/8" Pin | AD6: Hi-Mod Comp Stud 10mm Dyform Wire x 5/8-18 Thd | AF6: 2 | AG6: 10mm-D | AH6: 5.5 | AI6: 5/8" | AJ6: 58CTEM10-D | AK6: 58CTSM10-D
B7: Continuous Top Shroud | C7: 0 | D7: 10mm | E7: 15.7 | F7: 5/8" | G7: 58CTEM10 | H7: 92.33 | I7: 58CTSM10 | J7: 92.407 | L7: 0 | N7: 0 | O7: =(C7*(H7+J7+L7+N7))*Y7 -> 0 | P7: 0 | Q7: 0 | S7: blank | T7: Hi-Mod_compression_eye.jpg | U7: Hi-Mod_compresion_stud_r.jpg | V7: blank | W7: =E7*C7 -> 0 | X7: continuous | Y7: FALSE | Z7: 0 | AA7: 0 | AC7: Hi-Mod Comp Eye 10mm Wire x 5/8" Pin | AD7: Hi-Mod Comp Stud 10mm Wire x 5/8-18 Thd | AF7: 0 | AG7: 10mm | AH7: 15.7 | AI7: 5/8" | AJ7: 58CTEM10 | AK7: 58CTSM10
B8: Discontinuous Intermediate D2 | C8: 2 | D8: 8mm | E8: 4 | F8: 5/8" | G8: 58CTEM08 | H8: 69.846 | I8: 58CTSM08 | J8: 69.902 | L8: 0 | N8: 0 | O8: =(C8*(H8+J8+L8+N8))*Y8 -> 279.496 | P8: 50.82 | Q8: 330.316 | S8: blank | T8: Hi-Mod_compression_eye.jpg | U8: Hi-Mod_compresion_stud_r.jpg | V8: blank | W8: 8 | X8: discontinuous | Y8: TRUE | Z8: 1 | AA8: 2 | AC8: Hi-Mod Comp Eye 8mm Wire x 5/8" Pin | AD8: Hi-Mod Comp Stud 8mm Wire x 5/8-18 Thd | AF8: 2 | AG8: 8mm | AH8: 4 | AI8: 5/8" | AJ8: 58CTEM08 | AK8: 58CTSM08
B9: Continuous Intermediate Shroud | C9: 0 | D9: 8mm | E9: 9.5 | F9: 5/8" | G9: 58CTEM08 | H9: 69.846 | I9: 58CTSM08 | J9: 69.902 | L9: 0 | N9: 0 | O9: =AA9*(H9+J9+L9+N9) -> 0 | P9: 0 | Q9: 0 | S9: blank | T9: Hi-Mod_compression_eye.jpg | U9: Hi-Mod_compresion_stud_r.jpg | V9: blank | W9: =E9*C9 -> 0 | X9: continuous | Y9: FALSE | Z9: 0 | AA9: 0 | AC9: Hi-Mod Comp Eye 8mm Wire x 5/8" Pin | AD9: Hi-Mod Comp Stud 8mm Wire x 5/8-18 Thd | AF9: 0 | AG9: 8mm | AH9: 9.5 | AI9: 5/8" | AJ9: 58CTEM08 | AK9: 58CTSM08
B10: Lower Shrouds D1 | C10: 4 | D10: 8mm | E10: 5.2 | F10: 5/8" | G10: 58CTEM08 | H10: 69.846 | I10: 58CTSM08 | J10: 69.902 | L10: 0 | N10: 0 | O10: 558.992 | P10: 132.132 | Q10: 691.124 | S10: blank | T10: Hi-Mod_compression_eye.jpg | U10: Hi-Mod_compresion_stud_r.jpg | V10: blank | W10: 20.8 | X10: both | Y10: TRUE | Z10: 1 | AA10: 4 | AC10: Hi-Mod Comp Eye 8mm Wire x 5/8" Pin | AD10: Hi-Mod Comp Stud 8mm Wire x 5/8-18 Thd | AF10: 4 | AG10: 8mm | AH10: 5.2 | AI10: 5/8" | AJ10: 58CTEM08 | AK10: 58CTSM08
B11: Jibstay | C11: 1 | D11: 10mm | E11: 15.9 | F11: 5/8" | G11: 58CTEM10 | H11: 92.33 | I11: 58CTSM10 | J11: 92.407 | K11: FT-20C | L11: 52.24 | M11: 58EFBJ | N11: 84.301 | O11: 321.278 | P11: 128.5515 | Q11: 449.8295 | S11: eye_jaw_toggle.jpg | T11: Hi-Mod_compression_eye.jpg | U11: Hi-Mod_compresion_stud_r.jpg | V11: jaw_body_tfb_eye_r.jpg | W11: 15.9 | X11: both | Y11: TRUE | Z11: 1 | AA11: 1 | AB11: Alex. Roberts Eye Jaw Fixed Toggle 5/8" | AC11: Hi-Mod Comp Eye 10mm Wire x 5/8" Pin | AD11: Hi-Mod Comp Stud 10mm Wire x 5/8-18 Thd | AE11: LH Eye Toggle & Body TFB 5/8" Jaw 5/8" Pin | AF11: 1 | AG11: 10mm | AH11: 15.9 | AI11: 5/8" | AJ11: 58CTEM10 | AK11: 58CTSM10 | AL11: FT-20C | AM11: 58EFBJ
B12: Backstay (Dynex Dux) rope | C12: 1 | D12: 11mm | E12: 16.56 | F12: 5/8" | G12: CSS72BLK | H12: 48.19 | I12: CSS72BLK | J12: 48.19 | L12: 0 | N12: 0 | O12: 96.38 | P12: 369.6271314 | Q12: 466.0071314 | S12: blank | T12: Terminator.jpg | U12: Terminator_r.jpg | V12: blank | W12: 16.56 | X12: both | Y12: TRUE | Z12: 1 | AA12: 1 | AC12: Colligo Dux Terminals 11mm x 5/8" pin | AD12: Colligo Dux Terminals 11mm x 5/8" pin | AF12: 1 | AG12: 11mm | AH12: 16.56 | AI12: 5/8" | AJ12: CSS72BLK | AK12: CSS72BLK
B13: Backstay (wire) | C13: 0 | D13: 10mm | E13: 16.5 | F13: 5/8" | G13: 58CTEM10 | H13: 92.33 | I13: 58CTEM10 | J13: 92.33 | K13: FT-20C | L13: 52.24 | N13: 0 | O13: 0 | P13: =IF(C13,VLOOKUP(D13,wire_cost_table,6,FALSE)*E13*C13*(1+len_margin),0) -> 0 | Q13: =P13+O13 -> 0 | S13: eye_jaw_toggle.jpg | T13: Hi-Mod_compression_eye.jpg | U13: Hi-Mod_compression_eye_r.jpg | V13: blank | W13: 0 | X13: both | Y13: TRUE | Z13: 1 | AA13: 0 | AB13: Alex. Roberts Eye Jaw Fixed Toggle 5/8" | AC13: Hi-Mod Comp Eye 10mm Wire x 5/8" Pin | AD13: Hi-Mod Comp Eye 10mm Wire x 5/8" Pin | AF13: 0 | AG13: 10mm | AH13: 16.5 | AI13: 5/8" | AJ13: 58CTEM10 | AK13: 58CTEM10 | AL13: FT-20C
B14: Forestay (staysail stay) | C14: 1 | D14: 8mm | E14: 10.6 | F14: 1/2" | G14: 58RCSEM08 | H14: 30.723 | I14: 58RCSSM08 | J14: 34.584 | L14: 0 | N14: 0 | O14: 65.307 | P14: =IF(C14,VLOOKUP(D14,wire_cost_table,6,FALSE)*E14*C14*(1+len_margin),0) -> 61.215 | Q14: 126.522 | S14: blank | T14: N546-eye-swage-terminal.jpg | U14: rigging_stud_r.jpg | V14: blank | W14: 10.6 | X14: both | Y14: TRUE | Z14: 1 | AA14: 1 | AC14: Rope & Cable Eye + Swaging 8mm wire x 5/8 eye | AD14: Rope & Cable Thd Stud + Swaging 8mm wire x 5/8-18 RH thd | AF14: 1 | AG14: 8mm | AH14: 10.6 | AI14: 1/2" | AJ14: 58RCSEM08 | AK14: 58RCSSM08
B15: Insulators (pair) | C15: 0 | D15: 10mm | F15: n/a | G15: CTICCM10 | H15: 374.171 | I15: CTICCM10 | J15: 374.171 | L15: 0 | N15: 0 | O15: 0 | P15: =IF(C15,VLOOKUP(D15,wire_cost_table,6,FALSE)*E15*C15*(1+len_margin),0) -> 0 | Q15: 0 | S15: blank | T15: insulator.jpg | U15: insulator_r.jpg | V15: blank | W15: 0 | X15: both | Y15: TRUE | Z15: 1 | AA15: 0 | AC15: Hi-Mod Insulator Comp/Comp 10mm Wire | AD15: Hi-Mod Insulator Comp/Comp 10mm Wire | AF15: 0 | AG15: 10mm | AH15: 0 | AI15: n/a | AJ15: CTICCM10 | AK15: CTICCM10
B16: TOTAL ITEMS | C16: =SUM(C5:C15) -> 13 | M16: TOTAL COST | O16: =SUM(O5:O15) -> 2060.247 | P16: =SUM(P5:P15) -> 1143.116194 | Q16: 3203.363194 | S16: Image Lookup Column | T16: =ROW()-1 -> 15
S17: Start Row for Saved Data | T17: =VLOOKUP((current_config_lookup_value),save_meta,5,FALSE) -> 110
B18: Forestay (staysail stay) (8mm wire) | S18: Current Config | T18: 8 - Discontinuous Rigging All Hi-Mod 10mm-Compact Strand V1 Swaged forestay
S19: Current Config Lookup Value | T19: =VALUE(TRIM(LEFT(current_config,2))) -> 8
B20: =CONCATENATE("RIGGING COMPONENTS "," - ",VLOOKUP(current_config_lookup_value,save_meta,2)) -> RIGGING COMPONENTS - All Hi-Mod 10mm-Compact Strand V1 Swaged forestay | S20: Current Config Name | T20: =VLOOKUP(current_config_lookup_value,save_meta,2) -> All Hi-Mod 10mm-Compact Strand V1 Swaged forestay
B21: Fittings for 1x19 SS Wire | C21: Wire | D21: Eye or Stud Size | E21: Mfg # | F21: Quantity | G21: FISCO SKU | H21: Cost | I21: Total Cost | S21: IMAGE FILES | T21: LABELS
B22: =VLOOKUP(E22,hayn_catalog,2,FALSE) -> Hi-Mod Comp Stud 8mm Wire x 1/2-20 Thd | C22: 8mm | D22: 1/2" | E22: 12CTSM08 | F22: =SUMIF(topterm,E22,qty)+SUMIF(bottomterm,E22,qty)+SUMIF(toptog,E22,qty)+SUMIF(bottomtog,E22,qty) -> 0 | H22: =VLOOKUP(E22,hayn_catalog,5,FALSE) -> 68.348 | I22: =F22*H22 -> 0 | S22: Hi-Mod_compresion_stud.jpg | T22: =B22 -> Hi-Mod Comp Stud 8mm Wire x 1/2-20 Thd
B23: Hi-Mod Comp Eye 8mm Wire x 1/2" Pin | C23: 10mm | D23: 5/8" | E23: 12CTEM08 | F23: =SUMIF(topterm,E23,qty)+SUMIF(bottomterm,E23,qty)+SUMIF(toptog,E23,qty)+SUMIF(bottomtog,E23,qty) -> 0 | G23: 158813 | H23: =VLOOKUP(E23,hayn_catalog,5,FALSE) -> 68.803 | I23: =F23*H23 -> 0 | S23: Hi-Mod_compression_eye.jpg | T23: =B23 -> Hi-Mod Comp Eye 8mm Wire x 1/2" Pin
B24: =VLOOKUP(E24,hayn_catalog,2,FALSE) -> Hi-Mod Comp Stud 7/16" Wire x 3/4-16 Thd | C24: 7/16" | D24: 3/4" | E24: 34CTS716 | F24: 0 | G24: 158588 | H24: 205.884 | I24: 0 | S24: Hi-Mod_compresion_stud.jpg | T24: Hi-Mod Comp Stud 7/16" Wire x 3/4-16 Thd
B25: Hi-Mod Comp Stud 10mm Dyform Wire x 5/8-18 Thd | C25: 10mm-D | D25: 5/8" | E25: 58CTSM10-D | F25: 2 | G25: 158588 | H25: 92.407 | I25: 184.814 | S25: Hi-Mod_compresion_stud.jpg | T25: Hi-Mod Comp Stud 10mm Dyform Wire x 5/8-18 Thd
B26: =VLOOKUP(E26,hayn_catalog,2,FALSE) -> Hi-Mod Comp Eye 10mm Dyform Wire x 5/8" Pin | C26: 10mm | D26: 5/8" | E26: 58CTEM10-D | F26: =SUMIF(topterm,E26,qty)+SUMIF(bottomterm,E26,qty)+SUMIF(toptog,E26,qty)+SUMIF(bottomtog,E26,qty) -> 2 | G26: 158813 | H26: =VLOOKUP(E26,hayn_catalog,5,FALSE) -> 92.33 | I26: =F26*H26 -> 184.66 | S26: Hi-Mod_compression_eye.jpg | T26: =B26 -> Hi-Mod Comp Eye 10mm Dyform Wire x 5/8" Pin
B27: Hi-Mod Comp Stud 10mm Wire x 3/4-16 Thd | C27: 10mm | D27: 3/4" | E27: 34CTSM10 | F27: 0 | G27: 158587 | H27: 205.884 | I27: 0 | S27: Hi-Mod_compresion_stud.jpg | T27: Hi-Mod Comp Stud 10mm Wire x 3/4-16 Thd
B28: Hi-Mod Comp Stud 5/16" Wire x 1/2"-20 Thd | C28: 5/16" | D28: 1/2" | E28: 12CTS516 | F28: 0 | H28: 68.348 | I28: 0 | S28: Hi-Mod_compresion_stud.jpg | T28: Hi-Mod Comp Stud 5/16" Wire x 1/2"-20 Thd
B29: Hi-Mod Comp Stud 10mm Wire x 5/8-18 Thd | C29: 10mm | D29: 5/8" | E29: 58CTSM10 | F29: 1 | H29: 92.407 | I29: 92.407 | S29: Hi-Mod_compresion_stud.jpg | T29: Hi-Mod Comp Stud 10mm Wire x 5/8-18 Thd
B30: Hi-Mod Comp Stud 3/8" Wire x 3/4-16 Thd | C30: 3/8" | D30: 3/4" | E30: 34CTS38 | F30: 0 | H30: 205.884 | I30: 0 | S30: Hi-Mod_compresion_stud.jpg | T30: Hi-Mod Comp Stud 3/8" Wire x 3/4-16 Thd
B31: Hi-Mod Comp Stud 8mm Wire x 5/8-18 Thd | C31: 8mm | D31: 5/8" | E31: 58CTSM08 | F31: 6 | H31: 69.902 | I31: 419.412 | S31: Hi-Mod_compresion_stud.jpg | T31: Hi-Mod Comp Stud 8mm Wire x 5/8-18 Thd
B32: Hi-Mod Comp Stud 10mm Wire x 3/4-16 Thd | C32: 10mm | D32: 3/4" | E32: 34CTSM10 | F32: 0 | H32: 205.884 | I32: 0 | S32: Hi-Mod_compresion_stud.jpg | T32: Hi-Mod Comp Stud 10mm Wire x 3/4-16 Thd
B33: Threaded T-Bolt Toggle Jaw 1/2-20 LH | C33: 10mm | D33: 1/2" | E33: 12TJLH | F33: 0 | G33: 168055 | H33: 29.449 | I33: 0 | S33: threaded_toggle_jaw.jpg | T33: Threaded T-Bolt Toggle Jaw 1/2-20 LH
B34: Hi-Mod Comp Eye 3/8" Wire x 5/8" Pin | C34: 3/8" | D34: 5/8" | E34: 58CTE38 | F34: 0 | H34: 92.33 | I34: 0 | S34: Hi-Mod_compression_eye.jpg | T34: Hi-Mod Comp Eye 3/8" Wire x 5/8" Pin
B35: Hi-Mod Comp Eye 5/16" Wire x 5/8" Pin | C35: 5/16" | D35: 5/8" | E35: 58CTE516 | F35: 0 | H35: 69.846 | I35: 0 | S35: Hi-Mod_compression_eye.jpg | T35: Hi-Mod Comp Eye 5/16" Wire x 5/8" Pin
B36: Hi-Mod Comp Eye 8mm Wire x 5/8" Pin | C36: 8mm | D36: 5/8" | E36: 58CTEM08 | F36: 6 | H36: 69.846 | I36: 419.076 | S36: Hi-Mod_compression_eye.jpg | T36: Hi-Mod Comp Eye 8mm Wire x 5/8" Pin
B37: Hi-Mod Comp Eye 10mm Wire x 5/8" Pin | C37: 10mm | D37: 5/8" | E37: 58CTEM10 | F37: 5 | H37: 92.33 | I37: 461.65 | S37: Hi-Mod_compression_eye.jpg | T37: Hi-Mod Comp Eye 10mm Wire x 5/8" Pin
B38: Hi-Mod Comp Eye 7/16" Wire x 3/4" Pin | C38: 7/16" | D38: 5/8" | E38: 34CTE716 | F38: 0 | G38: 158813 | H38: 212.758 | I38: 0 | S38: Hi-Mod_compression_eye.jpg | T38: Hi-Mod Comp Eye 7/16" Wire x 3/4" Pin
B39: Hi-Mod Comp Fork 5/16" Wire x 5/8" Pin | C39: 5/16" | D39: 5/8" | E39: 58CTF516 | F39: 0 | H39: 80.283 | I39: 0 | S39: Hi-Mod_compression_fork.jpg | T39: Hi-Mod Comp Fork 5/16" Wire x 5/8" Pin
B40: Hi-Mod Comp Fork 3/8" Wire x 5/8" Pin | C40: 3/8" | D40: 5/8" | E40: 58CTF38 | F40: 0 | H40: 108.388 | I40: 0 | S40: Hi-Mod_compression_fork.jpg | T40: Hi-Mod Comp Fork 3/8" Wire x 5/8" Pin
B41: Hi-Mod Comp Fork 8mm Wire x 5/8" Pin | C41: 5/16" | D41: 5/8" | E41: 58CTFM08 | F41: 0 | H41: 80.283 | I41: 0 | S41: Hi-Mod_compression_fork.jpg | T41: Hi-Mod Comp Fork 8mm Wire x 5/8" Pin
B42: =VLOOKUP(E42,hayn_catalog,2,FALSE) -> Hi-Mod Comp Fork 10mm Wire x 5/8" Pin | C42: 5/16" | D42: 5/8" | E42: 58CTFM10 | F42: 0 | H42: 108.388 | I42: 0 | S42: Hi-Mod_compression_fork.jpg | T42: Hi-Mod Comp Fork 10mm Wire x 5/8" Pin
B43: Hi-Mod Comp Fork 10mm Dyform Wire x 5/8" Pin | C43: 10mm | D43: 5/8" | E43: 58CTFM10-D | F43: 0 | H43: 108.388 | I43: 0 | S43: Hi-Mod_compression_fork.jpg | T43: Hi-Mod Comp Fork 10mm Dyform Wire x 5/8" Pin
B44: Hi-Mod Comp Fork 7/16" Wire x 3/4" Pin | C44: 5/16" | D44: 5/8" | E44: 34CTF716 | F44: 0 | H44: 256.872 | I44: 0 | S44: Hi-Mod_compression_fork.jpg | T44: Hi-Mod Comp Fork 7/16" Wire x 3/4" Pin
B45: LH Eye Toggle & Body TFB 5/8" Jaw 5/8" Pin | D45: 5/8" | E45: 58EFBJ | F45: 1 | G45: 158595 | H45: 84.301 | I45: 84.301 | S45: jaw_body_tfb_eye.jpg | T45: LH Eye Toggle & Body TFB 5/8" Jaw 5/8" Pin
B46: LH Jaw and Body FBJ 5/8"Jaw 5/8" Pin | D46: 5/8" | E46: 58FBJ | F46: 0 | G46: 158595 | H46: 98.301 | I46: 0 | S46: partial_turnbuckle.jpg | T46: LH Jaw and Body FBJ 5/8"Jaw 5/8" Pin
B47: LH Eye Toggle & Body TFB 3/4" Jaw 3/4" Pin | D47: 3/4" | E47: 34EFBJ | F47: 0 | G47: 219199 | H47: 201.978 | I47: 0 | S47: jaw_body_tfb_eye.jpg | T47: LH Eye Toggle & Body TFB 3/4" Jaw 3/4" Pin
B48: LH Jaw and Body FBJ 3/4"Jaw 3/4" Pin | D48: 3/4" | E48: 34FBJ | F48: 0 | G48: 158594 | H48: 148.526 | I48: 0 | S48: partial_turnbuckle.jpg | T48: LH Jaw and Body FBJ 3/4"Jaw 3/4" Pin
B49: Threaded T-Bolt Toggle Jaw 5/8-18 LH | D49: 5/8" | E49: 58TJLH | F49: 0 | G49: 168132 | H49: 46.193 | I49: 0 | S49: threaded_toggle_jaw.jpg | T49: Threaded T-Bolt Toggle Jaw 5/8-18 LH
B50: Threaded T-Bolt Toggle Jaw 3/4-16 LH | D50: 3/4" | E50: 34TJLH | F50: 0 | H50: 112.966 | I50: 0 | S50: threaded_toggle_jaw.jpg | T50: Threaded T-Bolt Toggle Jaw 3/4-16 LH
B51: Marine Eye 7/16" Wire - 3/4" Pin | C51: 7/16" | D51: 3/4" | E51: ME14 | F51: 0 | H51: 48.405 | I51: 0 | S51: marine_eye.jpg | T51: Marine Eye 7/16" Wire - 3/4" Pin
B52: Marine Eye 8mm Wire - 5/8" Pin | C52: 8mm | D52: 5/8" | E52: MEM08 | F52: 0 | H52: 22.82 | I52: 0 | S52: marine_eye.jpg | T52: Marine Eye 8mm Wire - 5/8" Pin
B53: =VLOOKUP(E53,hayn_catalog,2,FALSE) -> Marine Eye 10mm Wire - 5/8" Pin | C53: 10mm | D53: 5/8" | E53: MEM10 | F53: 0 | H53: 26.761 | I53: 0 | S53: marine_eye.jpg | T53: Marine Eye 10mm Wire - 5/8" Pin
B54: Rigging Toggle Jaw ME 3/8"Wire 5/8"Pin | C54: 3/8" | D54: 5/8" | E54: 58RT38 | F54: 0 | H54: 61.012 | I54: 0 | S54: marine_eye_toggle_jaw.jpg | T54: Rigging Toggle Jaw ME 3/8"Wire 5/8"Pin
B55: =VLOOKUP(E55,hayn_catalog,2,FALSE) -> Rigging Toggle Jaw ME 5/16"Wire 5/8"Pin | C55: 5/16" | D55: 5/8" | E55: 58RT516 | F55: =SUMIF(topterm,E55,qty)+SUMIF(bottomterm,E55,qty)+SUMIF(toptog,E55,qty)+SUMIF(bottomtog,E55,qty) -> 0 | H55: 48.895 | I55: =F55*H55 -> 0 | S55: marine_eye_toggle_jaw.jpg | T55: =B55 -> Rigging Toggle Jaw ME 5/16"Wire 5/8"Pin
B56: =VLOOKUP(E56,hayn_catalog,2,FALSE) -> Rigging Toggle Jaw ME 7/16"Wire 3/4"Pin | C56: 7/16" | D56: 1/2" pin | E56: 34RT716 | F56: 0 | H56: 104.37 | I56: 0 | S56: marine_eye_toggle_jaw.jpg | T56: Rigging Toggle Jaw ME 7/16"Wire 3/4"Pin
B57: =VLOOKUP(E57,hayn_catalog,2,FALSE) -> Rigging Toggle Jaw ME 8mm Wire 5/8"Pin | C57: 8mm | D57: 5/8" | E57: 58RTM08 | F57: 0 | H57: 48.895 | I57: 0 | S57: marine_eye_toggle_jaw.jpg | T57: Rigging Toggle Jaw ME 8mm Wire 5/8"Pin
B58: Rigging Toggle Jaw ME 10mm Wire 5/8"Pin | C58: 10mm | D58: 5/8" | E58: 58RTM10 | F58: 0 | H58: 61.012 | I58: 0 | S58: marine_eye_toggle_jaw.jpg | T58: Rigging Toggle Jaw ME 10mm Wire 5/8"Pin
B59: Stud Rigging 10mm Wire 5/8-18 X 4 RH | C59: 10mm | D59: 5/8" | E59: 58SEM10RH | F59: 0 | H59: 30.947 | I59: 0 | S59: rigging_stud.jpg | T59: Stud Rigging 10mm Wire 5/8-18 X 4 RH
B60: Stud Rigging 8mm Wire 5/8-18 X 4 RH | C60: 8mm | D60: 5/8" | E60: 58SEM08RH | F60: 0 | H60: 24.773 | I60: 0 | S60: rigging_stud.jpg | T60: Stud Rigging 8mm Wire 5/8-18 X 4 RH
B61: =VLOOKUP(E61,hayn_catalog,2,FALSE) -> Stud Rigging 8mm Wire 1/2-20 X 3 1/4 RH | C61: 8mm | D61: 1/2" | E61: 12SEM08RH | F61: 0 | H61: 23.31 | I61: 0 | S61: rigging_stud.jpg | T61: Stud Rigging 8mm Wire 1/2-20 X 3 1/4 RH
B62: =VLOOKUP(E62,hayn_catalog,2,FALSE) -> Stud Rigging 7/16" Wire 3/4-16 X 5 RH | C62: 7/16" | D62: 3/4" | E62: 34SE716RH | F62: 0 | H62: 47.061 | I62: 0 | S62: rigging_stud.jpg | T62: Stud Rigging 7/16" Wire 3/4-16 X 5 RH
B63: Schaeffer Double Jaw Toggles | D63: 1/2" pin | E63: 93-87 | F63: 0 | G63: 23328 | H63: 67.98 | I63: 0 | S63: schaeffer_doublejaw_toggle.jpg | T63: Schaeffer Double Jaw Toggles
B64: Schaeffer Double Jaw Toggles | D64: 5/8" pin | E64: 93-88 | F64: 0 | G64: 10216 | H64: 94.75 | I64: 0 | S64: schaeffer_doublejaw_toggle.jpg | T64: Schaeffer Double Jaw Toggles
B65: Colligo Dux Terminal 9mm | C65: 9mm | D65: 5/8" | E65: CSS71BLK | F65: 0 | H65: 50 | I65: 0 | S65: Terminator.jpg | T65: Colligo Dux Terminal 9mm
B66: Colligo Dux Terminals 11mm x 5/8" pin | C66: 11mm x 5/8" pin | D66: 5/8" | E66: CSS72BLK | F66: 2 | H66: 48.19 | I66: 96.38 | S66: Terminator.jpg | T66: Colligo Dux Terminals 11mm x 5/8" pin
B67: =VLOOKUP(E67,hayn_catalog,2,FALSE) -> Hi-Mod Insulator Comp/Comp 3/8" Wire | C67: 3/8" | E67: CTICC38 | F67: 0 | H67: =VLOOKUP(E67,hayn_catalog,5,FALSE) -> 374.171 | I67: 0 | S67: insulator.jpg | T67: Hi-Mod Insulator Comp/Comp 3/8" Wire
B68: =VLOOKUP(E68,hayn_catalog,2,FALSE) -> Hi-Mod Insulator Comp/Comp 10mm Wire | C68: 10mm | E68: CTICCM10 | F68: 0 | H68: =VLOOKUP(E68,hayn_catalog,5,FALSE) -> 374.171 | I68: 0 | S68: insulator.jpg | T68: Hi-Mod Insulator Comp/Comp 10mm Wire
B69: Alex. Roberts Eye Jaw Fixed Toggle 1/2" | D69: 1/2" | E69: FT-16C | F69: 0 | G69: 00883 | H69: 30.58 | I69: 0 | S69: eye_jaw_toggle.jpg | T69: Alex. Roberts Eye Jaw Fixed Toggle 1/2"
B70: Alex. Roberts Eye Jaw Fixed Toggle 5/8" | D70: 5/8" | E70: FT-20C | F70: 1 | G70: 01011 | H70: 52.24 | I70: 52.24 | S70: eye_jaw_toggle.jpg | T70: Alex. Roberts Eye Jaw Fixed Toggle 5/8"
B71: SecoSouth Swage Eye Terminal 5/16" wire x eye | C71: 5/16" | D71: 5/8" | E71: N546-1020 | F71: 0 | H71: 23.45 | I71: 0 | S71: N546-eye-swage-terminal.jpg | T71: SecoSouth Swage Eye Terminal 5/16" wire x eye
B72: SecoSouth Swage Eye Terminal 3/8" wire x 5/8 eye | C72: 3/8" | D72: 5/8" | E72: N546-1220 | F72: 0 | H72: 23.45 | I72: 0 | S72: N546-eye-swage-terminal.jpg | T72: SecoSouth Swage Eye Terminal 3/8" wire x 5/8 eye
B73: Rope & Cable Eye + Swaging 10mm wire x 5/8 eye | C73: 10mm | D73: 5/8" | E73: 58RCSEM10 | F73: 0 | H73: =(41.3 + 10 )*1.1 -> 56.43 | I73: 0 | S73: N546-eye-swage-terminal.jpg | T73: Rope & Cable Eye + Swaging 10mm wire x 5/8 eye
B74: Rope & Cable Eye + Swaging 8mm wire x 5/8 eye | C74: 8mm | D74: 5/8" | E74: 58RCSEM08 | F74: 1 | H74: =(19.93 + 8)*1.1 -> 30.723 | I74: 30.723 | S74: N546-eye-swage-terminal.jpg | T74: Rope & Cable Eye + Swaging 8mm wire x 5/8 eye
B75: Rope & Cable Eye + Swaging 10mm wire x 3/4" eye | C75: 10mm | D75: 3/4" | E75: 34RCSEM10 | F75: 0 | H75: =43.93*1.1 -> 48.323 | I75: 0 | S75: N546-eye-swage-terminal.jpg | T75: Rope & Cable Eye + Swaging 10mm wire x 3/4" eye
B76: Rope & Cable Eye + Swaging 7/16 wire x 3/4 eye | C76: 7/16" | D76: 3/4" | E76: 34RCSE716 | F76: 0 | H76: 49.3 | I76: 0 | S76: N546-eye-swage-terminal.jpg | T76: Rope & Cable Eye + Swaging 7/16 wire x 3/4 eye
B77: Rope & Cable Thd Stud + Swaging 10mm wire x 5/8-18 RH thd | C77: 10mm | D77: 5/8" | E77: 58RCSSM10 | F77: 0 | H77: =36.83*1.1 -> 40.513 | I77: 0 | S77: rigging_stud.jpg | T77: Rope & Cable Thd Stud + Swaging 10mm wire x 5/8-18 RH thd
B78: Rope & Cable Thd Stud + Swaging 8mm wire x 5/8-18 RH thd | C78: 8mm | D78: 5/8" | E78: 58RCSSM08 | F78: 1 | H78: =31.44*1.1 -> 34.584 | I78: 34.584 | S78: rigging_stud.jpg | T78: Rope & Cable Thd Stud + Swaging 8mm wire x 5/8-18 RH thd
B79: Rope & Cable Thd Stud + Swaging 10mm wire x 3/4-16 RH thd | C79: 10mm | D79: 3/4" | E79: 34RCSSM10 | F79: 0 | H79: =45.83*1.1 -> 50.413 | I79: 0 | S79: rigging_stud.jpg | T79: Rope & Cable Thd Stud + Swaging 10mm wire x 3/4-16 RH thd
B80: Rope & Cable Thd Stud + Swaging 7/16 wire x 3/4-16 RH thd | C80: 7/16" | D80: 3/4" | E80: 34RCSS716 | F80: 0 | H80: 55 | I80: 0 | S80: rigging_stud.jpg | T80: Rope & Cable Thd Stud + Swaging 7/16 wire x 3/4-16 RH thd
B81: Alex. Roberts Threaded Toggle Jaw LH 1/2" | D81: 1/2" | E81: TBT-1616 | F81: 0 | I81: 0 | S81: threaded_toggle_jaw.jpg | T81: Alex. Roberts Threaded Toggle Jaw LH 1/2"
B82: Alex. Roberts Threaded Toggle Jaw LH 5/8" | D82: 5/8" | E82: TBT-2020 | F82: 0 | I82: 0 | S82: threaded_toggle_jaw.jpg | T82: Alex. Roberts Threaded Toggle Jaw LH 5/8"
B83: =VLOOKUP(E83,hayn_catalog,2,FALSE) -> Toggle, Eye-Jaw 1/2" Pin | D83: 1/2" | E83: TOG07 | F83: 0 | G83: 168103 | H83: =VLOOKUP(E83,hayn_catalog,5,FALSE) -> 44.779 | I83: 0 | S83: Hi-Mod_eye_jaw_toggle.jpg | T83: Toggle, Eye-Jaw 1/2" Pin
B84: =VLOOKUP(E84,hayn_catalog,2,FALSE) -> Toggle, Eye-Jaw 5/8" Pin | D84: 5/8" | E84: TOG10 | F84: 0 | G84: 168104 | H84: =VLOOKUP(E84,hayn_catalog,5,FALSE) -> 107.387 | I84: 0 | S84: Hi-Mod_eye_jaw_toggle.jpg | T84: Toggle, Eye-Jaw 5/8" Pin
B85: =VLOOKUP(E85,hayn_catalog,2,FALSE) -> Hi-Mod Comp Extender 7/16" Wire | D85: 7/16" | E85: CTX716 | F85: 0 | H85: =VLOOKUP(E85,hayn_catalog,5,FALSE) -> 46.34 | I85: 0 | S85: extender.jpg | T85: Hi-Mod Comp Extender 7/16" Wire
B86: =VLOOKUP(E86,hayn_catalog,2,FALSE) -> Hi-Mod Comp Extender 10mm Wire | D86: 10mm | E86: CTXM10 | F86: 0 | H86: =VLOOKUP(E86,hayn_catalog,5,FALSE) -> 46.34 | I86: 0 | S86: extender.jpg | T86: Hi-Mod Comp Extender 10mm Wire
B87: =VLOOKUP(E87,hayn_catalog,2,FALSE) -> Hi-Mod Comp Extender 5/16" Wire | D87: 8mm | E87: CTX516 | F87: =SUMIF(topterm,E87,qty)+SUMIF(bottomterm,E87,qty)+SUMIF(toptog,E87,qty)+SUMIF(bottomtog,E87,qty) -> 0 | G87: 183838 | H87: =VLOOKUP(E87,hayn_catalog,5,FALSE) -> 33.285 | I87: =F87*H87 -> 0 | S87: extender.jpg | T87: =B87 -> Hi-Mod Comp Extender 5/16" Wire
B88: Clevis Pin | D88: 5/8" | E88: 193606-1 | G88: 85948 | H88: 3.01 | I88: 0 | S88: clevis_pin.jpg | T88: Clevis Pin
B89: Clevis Pin | D89: 3/4" | E89: 193608 | G89: 77258 | H89: 3.44 | I89: 0 | S89: clevis_pin.jpg | T89: Clevis Pin
B90: Spreader Boot (Nylon, upper only) | E90: SBTU | G90: 53965 | H90: 24.52 | I90: 0 | S90: blank.jpg | T90: Spreader Boot (Nylon, upper only)
B91: Spreader Boot Tip (Leather 6.75" circumf) | E91: SBT small | G91: 130294 | H91: 40 | I91: 0 | S91: blank.jpg | T91: Spreader Boot Tip (Leather 6.75" circumf)
B92: Spreader Boot Tip (Leather 9.5" circumf) | E92: SBT large | G92: 130295 | H92: 65 | I92: 0 | S92: blank.jpg | T92: Spreader Boot Tip (Leather 9.5" circumf)
B93: Mast Height = 51' or 15.5m | F93: =SUM(F27:F92) -> 24 | G93: TOTALS | I93: =SUM(I25:I92) -> 2060.247
F94: =CONCATENATE("USA Shipping (",USPS_FRB," boxes)") -> USA Shipping (4 boxes) | I94: =USPS_FRB*47.95 -> 191.8
F95: Total | I95: =I94+I93 -> 2252.047 | S95: USPS Shipping Boxes
B96: Add Wire Length Margin of | C96: 0.05 | S96: =IF(C13=1,0,1)+ROUNDUP(I93/1000,0) -> 4
B97: WIRE SPECIFICATIONS
C98: Wire Size | D98: Length (m) (round) | E98: Breaking Strength (kg) | F98: Weight (kg/100m) | G98: Weight (kg) | H98: Price per Meter* | I98: Cost w/GST
B99: 316 1x19 | C99: 7mm | D99: =ROUNDUP(SUMIF(elem_wire_sz,C99,tot_wire_len)*(1+len_margin),0) -> 0 | E99: 3550 | F99: 23.9 | G99: =F99*D99/100 -> 0 | H99: 4.5 | I99: =H99*D99*1.1 -> 0 | L99: price unconfirmed | S99: lbs/kilo | T99: 0.4536
B100: 316 1x19 | C100: 8mm | D100: =ROUNDUP(SUMIF(elem_wire_sz,C100,tot_wire_len)*(1+len_margin),0) -> 42 | E100: 5745 | F100: 31.7 | G100: =F100*D100/100 -> 13.314 | H100: 5.5 | I100: =H100*D100*1.1 -> 254.1 | S100: lbs/kilo | T100: 0.4536
B101: 316 1x19 | C101: 5/16" | D101: =SUMIF(elem_wire_sz,C101,tot_wire_len) -> 0 | E101: 5745 | F101: 31.7 | G101: 0 | H101: 5.5 | I101: =H101*D101 -> 0 | S101: m/ft | T101: 0.3048
B102: 316 Compact Strand | C102: 10mm-D | D102: =ROUNDUP(SUMIF(elem_wire_sz,C102,tot_wire_len)*(1+len_margin),0) -> 12 | E102: 9800 | F102: 49.5 | G102: =F102*D102/100 -> 5.94 | H102: =24.75*0.75 -> 18.5625 | I102: =H102*D102*1.1 -> 245.025
B103: 316 1x19 | C103: 10mm | D103: =ROUNDUP(SUMIF(elem_wire_sz,C103,tot_wire_len)*(1+len_margin),0) -> 39 | E103: 8415 | F103: 49.5 | G103: 19.305 | H103: 7 | I103: =H103*D103*1.1 -> 300.3 | S103: kg/100' conversion | T103: =1/T101*T100 -> 1.488188976
B104: 316 1x19 | C104: 7/16" | D104: =ROUNDUP(SUMIF(elem_wire_sz,C104,tot_wire_len)*(1+len_margin),0) -> 0 | E104: 10700 | F104: 59.1 | G104: 0 | H104: 8 | I104: =H104*D104*1.1 -> 0
B105: 316 1x19 | C105: 3/8" | D105: =SUMIF(elem_wire_sz,C105,tot_wire_len) -> 0 | E105: =6850*1.2 -> 8220 | F105: 44.65 | G105: 0 | H105: 7 | I105: =H105*D105 -> 0 | S105: 30 | T105: =S105*wire_wt_conv -> 44.64566929
B106: Colligo Dux | C106: 9mm | D106: =SUMIF(elem_wire_sz,C106,tot_wire_len) -> 0 | E106: 12000 | F106: 5.4 | G106: 0 | H106: 5.6 | I106: =H106*D106 -> 0 | S106: lb/100'
B107: Colligo Dux | C107: 11mm | D107: =SUMIF(elem_wire_sz,C107,tot_wire_len) -> 16.56 | E107: 18400 | F107: 8.3 | G107: 1.37448 | H107: =5.89*3.281 -> 19.32509 | I107: =H107*D107 -> 320.0234904
B108: TOTAL | D108: =SUM(D100:D107) -> 109.56 | G108: =SUM(G100:G107) -> 39.93348 | I108: =SUM(I100:I107) -> 1119.44849
B110: PROJECT SUMMARY | C110: QTY / LENGTH | D110: TOTAL
B111: Parts | C111: =F93 -> 24 | D111: =I93 -> 2060.247
B112: Colligo Dux | C112: =SUM(D106:D107) -> 16.56 | D112: =SUM(I106:I107) -> 320.0234904
B113: Wire | C113: =SUM(D100:D105) -> 93 | D113: =SUM(I100:I105) -> 799.425
B114: Shipping | C114: =USPS_FRB -> 4 | D114: =I94 -> 191.8
B115: TOTAL | D115: =SUM(D111:D114) -> 3371.49549
B117: Pros and Cons of Rigging Systems
B118: Item | C118: Dynex Dux | E118: Steel Wire w/ Hi-Mods | H118: Steel Wire w/ Swaging | K118: Score Weight 1-10 | S118: Dux | T118: Hi-Mod | U118: Swaging
B119: Weight Aloft | C119: 5kg total Dux rig | E119: 58kg total wire rig except for Dux backstay | H119: 58kg total wire rig except Dux b/stay | K119: 2 | S119: x | T119: x | V119: =IF(S119="X",$K119,0) -> 2 | W119: =IF(T119="X",$K119,0) -> 2 | X119: =IF(U119="X",$K119,0) -> 0
B120: Inspection of Wire or Rope Ends | C120: YES | E120: Possible with disassembly | H120: Not Possible | K120: 6 | S120: x | T120: x | V120: =IF(S120="X",$K120,0) -> 6 | W120: =IF(T120="X",$K120,0) -> 6 | X120: =IF(U120="X",$K120,0) -> 0
B121: Chafe | C121: Needs inspection/protection | E121: Steel never chafes | H121: Steel never chafes | K121: 7 | T121: x | U121: x | V121: 0 | W121: 7 | X121: 7
B122: Rig Install time | C122: About twice the steel time | E122: 4 hours for good rigger | H122: 4 hours for good rigger | K122: 3 | T122: x | U122: x | V122: 0 | W122: 3 | X122: 3
B123: Wire or Rope Cost | C123: About the Same | E123: About the same | H123: About the same | K123: 4 | S123: x | T123: x | U123: x | V123: 4 | W123: 4 | X123: 4
B124: Lifetime | C124: 5-8 years. Results not all in. | E124: 8 years (10-15 in practice) | H124: 8 years (10-15 in practice) | K124: 6 | T124: x | U124: x | V124: 0 | W124: 6 | X124: 6
B125: Termination Costs | C125: 70% of Hi-Mod | E125: Hi-Mod fittings all around @ $90 each* | H125: Less Than Both Dynex or Hi-Mod | K125: 5 | S125: x | U125: x | V125: 5 | W125: 0 | X125: 5
B126: History | C126: New Technology | E126: Tried and True | H126: Tried and True | K126: 9 | T126: x | U126: x | V126: 0 | W126: 9 | X126: 9
B127: Failure | C127: None at this time | E127: Never | H127: <100% | K127: 10 | S127: x | T127: x | V127: 10 | W127: 10 | X127: 0
B128: Installer (Labor Costs) | C128: DIY | E128: DIY | H128: Swaging Shop or Rigger | K128: 5 | S128: x | T128: x | V128: 5 | W128: 5 | X128: 0
B129: Terminal Attachment Time or Splicing | C129: Longest | E129: 2-minutes plus | H129: Longer | K129: 3 | T129: x | V129: 0 | W129: 3 | X129: 0
B130: Dynamic Loading in High Sea States** | C130: Much Greater | E130: Normal | H130: Normal | K130: 3 | T130: x | U130: x | V130: 0 | W130: 3 | X130: 3
B131: Reusable Terminators | C131: YES | E131: YES | H131: NO | K131: 7 | S131: x | T131: x | V131: 7 | W131: 7 | X131: 0
B132: Thermal Expansion Issue | C132: YES | E132: NO | H132: NO | K132: 5 | T132: x | U132: x | V132: 0 | W132: 5 | X132: 5
B133: Vibration of Rigging | C133: YES | E133: NO | H133: NO | K133: 3 | S133: x | T133: x | U133: x | V133: 3 | W133: 3 | X133: 3
B134: Effect of Lightning Strikes | C134: unknown | E134: unknown | H134: unknown | K134: 0 | S134: x | T134: x | U134: x | V134: 0 | W134: 0 | X134: 0
B135: Pretension*** | C135: Lower (about 50%) | E135: Higher | H135: Higher | K135: 3 | S135: x | V135: 3 | W135: =IF(T135="X",$K135,0) -> 0 | X135: =IF(U135="X",$K135,0) -> 0
B136: Terminal Costs (may be offset by labor) | C136: Lower | E136: Higher | H136: Lowest | K136: 5 | S136: x | U136: x | V136: 5 | W136: 0 | X136: 5
B137: UNWEIGHTED SCORE | C137: =COUNTIF(S119:S136,"x")/nbr -> 0.6111111111 | E137: =COUNTIF(T119:T136,"x")/nbr -> 0.8333333333 | F137: 6/13 | H137: =COUNTIF(U119:U136,"x")/nbr -> 0.6111111111 | I137: 6/13 | K137: =SUM(K119:K136) -> 86 | S137: =COUNTIF(S119:S136,"x")/nbr -> 0.6111111111 | T137: =COUNTIF(T119:T136,"x")/nbr -> 0.8333333333 | U137: =COUNTIF(U119:U136,"x")/nbr -> 0.6111111111 | V137: =SUM(V119:V136)/weigh_sum -> 0.5813953488 | W137: =SUM(W119:W136)/weigh_sum -> 0.8488372093 | X137: =SUM(X119:X136)/weigh_sum -> 0.5813953488
B138: WEIGHTED SCORE | C138: =V137 -> 0.5813953488 | E138: =W137 -> 0.8488372093 | F138: 6/13 | H138: =X137 -> 0.5813953488 | I138: 6/13 | K138: =nbr -> 18
B139: * Swaged upper terminals with Hi-Mod Lower Terminals is a reasonable option if trusted swaging is available | S139: =(COUNTA(S119:S136)+COUNTBLANK(S119:S136)) -> 18 | T139: <- TOTAL ITEMS
B140: ** With a lighter weight aloft the boat becomes stiffer. A stiffer boat puts more stress on the rig in high winds and high seas. This is theoretical and may not apply to the heavy KP44
B141: *** The pretension seems to mask the linear expansion/contraction of the rigging and it still stays in the performance window for stretch. It may also reduce the dynamic loading effect.
B143: Questions: | D143: Answers:
B144: 1. New Clevis Pins? | D144: NEW ONES, BUT NOT GENERALLY CONSIDERED A WEAK LINK!
B145: 2. New Tangs | D145: BOLTS INSPECT AND REPLACE. | G145: DON'T CHANGE ANYTHING.
B146: 3. HM Rope Staysail Stay? | D146: COULD BE GOOD BUT OK TO RETAIN EXISTING STAY
B147: 4. Recommendations for brand of Toggles | D147: CHEAPER TOGGLES ARE FINE
B148: 5. New Bronze Turnbuck Barrels add $200 | D148: PERHAPS AT JIBSTAY
B150: Notes:
B151: 1. Jibstay pin-to-pin max length = 53'-11.125" or 53.927' or 16.44m
B153: Korean vs. Type 316 Wire
B154: KOS Wire

Sheet Cost Comparisons
D5: ='Saved Configurations'!B3 -> ID NBR | E5: CONFIGURATION | F5: ='Saved Configurations'!E3 -> TYPE | G5: ='Saved Configurations'!I3 -> Wire Cost | H5: ='Saved Configurations'!H3 -> Elem. Cost | I5: ='Saved Configurations'!J3 -> Tot Cost
D6: ='Saved Configurations'!B4 -> 1 | E6: ='Saved Configurations'!C4 -> All Hi-Mod with 7/16" V1 | F6: ='Saved Configurations'!E4 -> Discontinuous Rigging | G6: ='Saved Configurations'!I4 -> 1112.01 | H6: ='Saved Configurations'!H4 -> 2886.33 | I6: ='Saved Configurations'!J4 -> 3998.34
D7: ='Saved Configurations'!B5 -> 2 | E7: ='Saved Configurations'!C5 -> Mixed Hi-Mod and Swaged with 7/16" V1 | F7: ='Saved Configurations'!E5 -> Discontinuous Rigging | G7: ='Saved Configurations'!I5 -> 1112.01 | H7: ='Saved Configurations'!H5 -> 2235.88 | I7: ='Saved Configurations'!J5 -> 3347.89
D8: ='Saved Configurations'!B6 -> 3 | E8: ='Saved Configurations'!C6 -> All Hi-Mod with 10mm 1x19 V1 | F8: ='Saved Configurations'!E6 -> Discontinuous Rigging | G8: ='Saved Configurations'!I6 -> 1306.94 | H8: ='Saved Configurations'!H6 -> 1910.49 | I8: ='Saved Configurations'!J6 -> 3217.43
D9: ='Saved Configurations'!B7 -> 4 | E9: ='Saved Configurations'!C7 -> All Swaged with 10mm 1x19 V1 | F9: ='Saved Configurations'!E7 -> Discontinuous Rigging | G9: ='Saved Configurations'!I7 -> 1306.94 | H9: ='Saved Configurations'!H7 -> 1126.84 | I9: ='Saved Configurations'!J7 -> 2433.78
D10: ='Saved Configurations'!B8 -> 5 | E10: ='Saved Configurations'!C8 -> Mixed Hi-Mod and Swaged with 10mm 1x19 V1 | F10: ='Saved Configurations'!E8 -> Discontinuous Rigging | G10: ='Saved Configurations'!I8 -> 1306.94 | H10: ='Saved Configurations'!H8 -> 2139.14 | I10: ='Saved Configurations'!J8 -> 3446.08
D11: ='Saved Configurations'!B9 -> 6 | E11: ='Saved Configurations'!C9 -> All swaged with 7/16" V1 | F11: ='Saved Configurations'!E9 -> Discontinuous Rigging | G11: ='Saved Configurations'!I9 -> 1112.01 | H11: ='Saved Configurations'!H9 -> 1566.73 | I11: ='Saved Configurations'!J9 -> 2678.74
D12: ='Saved Configurations'!B10 -> 7 | E12: ='Saved Configurations'!C10 -> All Hi-Mod | F12: ='Saved Configurations'!E10 -> Continuous Rigging | G12: ='Saved Configurations'!I10 -> 1112.01 | H12: ='Saved Configurations'!H10 -> 1560.94 | I12: ='Saved Configurations'!J10 -> 2672.95
D13: ='Saved Configurations'!B11 -> 8 | E13: ='Saved Configurations'!C11 -> All Hi-Mod 10mm-Compact Strand V1 Swaged forestay | F13: ='Saved Configurations'!E11 -> Discontinuous Rigging | G13: ='Saved Configurations'!I11 -> 1119.45 | H13: ='Saved Configurations'!H11 -> 2060.25 | I13: ='Saved Configurations'!J11 -> 3179.7
D14: ='Saved Configurations'!B12 -> 9 | E14: ='Saved Configurations'!C12 -> V1 Price Analysis 10mm Dyrform | F14: ='Saved Configurations'!E12 -> Discontinuous Rigging | G14: ='Saved Configurations'!I12 -> 245.03 | H14: ='Saved Configurations'!H12 -> 369.47 | I14: ='Saved Configurations'!J12 -> 614.5
D15: ='Saved Configurations'!B13 -> 10 | E15: ='Saved Configurations'!C13 -> V1 Price Analysis 7/16 1x19 | F15: ='Saved Configurations'!E13 -> Discontinuous Rigging | G15: ='Saved Configurations'!I13 -> 105.6 | H15: ='Saved Configurations'!H13 -> 837.28 | I15: ='Saved Configurations'!J13 -> 942.88
D16: ='Saved Configurations'!B14 -> 11 | E16: ='Saved Configurations'!C14 -> All Hi-Mod 10mm Compact Strand V1 w/o Forestay | F16: ='Saved Configurations'!E14 -> Discontinuous Rigging | G16: ='Saved Configurations'!I14 -> 837.65 | H16: ='Saved Configurations'!H14 -> 1577.28 | I16: ='Saved Configurations'!J14 -> 2414.93
D17: ='Saved Configurations'!B15 -> 12 | E17: ='Saved Configurations'!C15 -> All Hi-Mod 10mm-Compact Strand V1 | F17: ='Saved Configurations'!E15 -> Discontinuous Rigging | G17: ='Saved Configurations'!I15 -> 1119.45 | H17: ='Saved Configurations'!H15 -> 2133.65 | I17: ='Saved Configurations'!J15 -> 3253.1

Sheet Products Ordered
C6: DATE | D6: SUPPLIER | E6: WIRE | F6: SIZE | G6: LEN | H6: PRICE | I6: TOT+GST
C7: 2012-09-18 | D7: RopeCable (Greg Arcus) | E7: 316 1x19 | F7: 8mm | G7: 22 | H7: 5.5 | I7: =G7*H7*1.1 -> 133.1
C8: 2012-09-18 | D8: RopeCable (Greg Arcus) | E8: 316 1x19 | F8: 10mm | G8: 82 | H8: 7 | I8: =G8*H8*1.1 -> 631.4
I9: =SUM(I7:I8) -> 764.5
C12: DATE | D12: SUPPLIER | E12: WIRE | F12: SIZE | G12: LEN | H12: PRICE | I12: TOT+GST
C13: 2012-09-18 | D13: RopeCable (Greg Arcus) | E13: 316 1x19 | F13: 8mm | G13: =52-G7 -> 30 | H13: 5.5 | I13: =G13*H13*1.1 -> 181.5
C14: 2012-09-18 | D14: RopeCable (Greg Arcus) | E14: 316 1x19 | F14: 10mm | G14: =29-G8 -> -53 | H14: 7 | I14: =G14*H14*1.1 -> -408.1
I15: =SUM(I13:I14) -> -226.6
C17: DATE | D17: SUPPLIER | E17: WIRE | F17: SIZE | G17: LEN | H17: PRICE | I17: TOT+GST
C18: 2012-09-18 | D18: RopeCable (Greg Arcus) | E18: 316 1x19 | F18: 10mm D | G18: 12 | H18: =24.75*0.75 -> 18.5625 | I18: =G18*H18*1.1 -> 245.025
C19: 2012-09-18 | D19: RopeCable (Greg Arcus) | E19: 316 1x19 | F19: 8mm | G19: 9 | H19: =7.24*0.75 -> 5.43 | I19: =G19*H19*1.1 -> 53.757
H20: FREIGHT | I20: 26
I21: =SUM(I18:I20) -> 324.782

Sheet Notes
B5: Good Old Boat, Quick Attach, Sta-Lok, Norseman, swasless fittings
B7: A couple of excerpts.
B9: (Test 1), you will see that the swage fitting held onto the wire to a peak load of 4,112 pounds before slipping. The wire did not break; it pulled out of the fitting. This was a successful test as the wire breaking strength was rated at 4,000 pounds, and the fitting exceeded that load. The other two fittings were tested to verify the baseline. One test was satisfactory, and one tested well below the braking strength of the wire (This terminal brand was retested at a later time with an assembly made up by the supplier. It also failed the second test.)
B11: The swaged terminal, as well as the Sta-Lok and the Suncor swageless terminals, passed the initial round of tests by breaking at a load slightly in excess of the wire’s rated ultimate breaking strength.. The Norseman terminal failed at 69 percent of the wire’s rated ultimate breaking strength. When the supplier was contacted concerning this, they offered to supply another terminal and wire assembly made up by their own staff. This terminal and wire assembly also failed the test, breaking at 80 percent of the rated breaking strength of the wire.
B13: John Franta, Colligo We have done, and continue to do UV testing on Dynex Dux (Heat Stretched/ Work Hardened Dyneema). Since we use and promote this for standing rigging this is very important to us. Dyneema fibers are the best synthetic fibers for UV resistance. We have enough data to recommend a 5-8 year replacement interval in the tropics. The data is still coming in and I believe that we will end up recommending an 8 year replacement interval for standing rigging. All this is for uncovered Dynex Dux that is/was initially treated with a Urethane Coating to help with friction and UV resistance. Keep in mind that most steel manufacturers recommend an 8 year replacement interval for salt water boats. The mechanism for UV damage on dyneema is such that the line experiences some external UV damage and then becomes somewhat opague for UV Rays so the damage rate diminishes considerably. Also, this is based on the fact that we size the line for Stretch and Creep (not breaking strength). This type of sizing always ends up with line that is 2-5 times stronger than 1x19 spec'd for the same application. So you have a considerable factor of safety for strength. John Franta, Colligo Marine
B15: Another point I am curious about... You made up a couple of DUX runners for me that came out GREAT. Thanks for the accuracy! They are for my running backstays, and DUX seems like a perfect application here. I normally leave them "made up" and fairly snug, to use as a handhold when boarding the boat. When using the staysail, I will put 4 more turns on the "quick adjust" handle turnbuckles, but so far, haven't given them the acid test. I go to the boat daily, and have noticed that @ 75 degrees F, the runners are quite snug, but @ 40 degrees F, perhaps that same morning, they hang completely limp. Since solid materials expand when heated, and contract when cooled, it can't be that the DUX has gotten longer on a cool morning. I assume that the metal mast has contracted at a rate vastly higher than the DUX, creating loose runners in the morning. Presumably with wooden or composite spars this is less of a problem,. My wire rigging has never done this "changing tune with temperature", and I imagine that it's because the wire expands and contracts at a rate somewhat similar to the metal mast.
B16: We are just about to embark on the complete replacement of the athwartships rigging on a 110 foot 200 ton three masted schooner. I am completely confident that our standard system of calibrated Dynex Dux with a Dyneema overbraid into our custom thimbles in standard turnbuckles is more that capable of handling any chafe, shock loading or U V degradation that the Australian environment can dish out. The bare Dyneema line standing rigging is fine for do-it-yourselfers and has a role to play as an emergency shroud and, it must be said, has given outstanding service on many boats, but for true longevity you should consider the Dux with overbraid. I too have witnessed the rubbing-off effect of the Dyneema U/V "Bloom" on an early (1991) pair of bare Dyneema runners that I replaced FOC as a matter of courtesy. The memory of this event was the catalyst for my development, WAY back in 2006 !, of termination and proving systems to allow our use of Dynex Dux with Overbraid for standing rigging. Regards, Joe Henderson, Henderson Rigging.
B18: http://www.rigging.com.au/dynex_dux_overbraid.htm
B20: Hi Mark, please see the FAQ's on our site about Colligo Dux Rigging. We now have enough data to say 5-8 years for a replacement interval of Dynex Dux in the Tropics. This data is still coming in and we are watching it closely. As an engineer and a sailor, I can tell you that I wouldn't feel comfortable going offshore with a stainless rig on a saltwater boat over 10 years old unless, possibly, I knew it was washed with freshwater almost daily. Maybe with stayloks that were completely inspected, certainly not swage fittings. To my knowledge, most of the wire rope manufacturers recommend 8-10 years as a replacement interval for stainless wire. I am sure Brion has a valuable opinion here. On the tuning, 2 things. 1. The coeficient of thermal expansion (COTE) of dyneema is less than that of aluminum, so you get a difference in expansion rates in the temperature ranges you see on a boat. If you do some calcs on an aluminum mast you would probably be surprised on how much growth you can expect. The COTE of Steel is also different than aluminum but not as much and is usually masked by the higher amount of pretension with turnbuckles. If you use turnbuckles with some amount of pretension you will usually not see the loosening of the shrouds, if you use lashings than you will probably notice it as the amount of pretension will probably not be enough to cover the thermal expansion of the mast. Some of our customers have noticed this and after tensioning in colder weather they have enough pretension to not see the issue again. If you have a rig that requires more pretension (or better control of tension) we recommend using turnbuckles for pre-tensioning. We also now have Loos gauge calibrations for several sizes of Dux to help with setting the tension. You will have a little more maintenance with Colligo Dux, especially with lashing tensioners, but you should expect this as you need to inspect for chafe more (than steel) also. All synthetics, PBO, Carbon, Dyneema, Aramids, etc put more responsiblity in the hands of the sailor as there are alot of unknowns as none of them have been used as long as Steel. You will not find a synthetic rig that will give you the same amount of confidence as steel for probably about another 100 years or so. John Franta, Colligo Marine
B22: Hello all, We are in the process of returning to a world where sailors are a living part of their rigs, responsible for design and fabrication, as well as maintenance and use. Part of that process requires familiarizing ourselves with the assorted materials, and the interactions thereof. The expansion issue being discussed here is a piece of that. As John notes, the pretension required for a (proper) tune with wire masks differences in expansion rates for aluminum and steel. But if you put a tension gauge on the wire on a cold day, and then a warm one, I think you'll be surprised at the difference. In the Northwest, we can use this to our advantage, as the colder days usually have higher windspeeds. With Spectra, very little pretension is normally needed, so there's less "travel" needed for the rigging to go slack. This might mean more frequent or seasonal adjustment, and it might mean finding an average pretension -- under the "creep" level -- to tune to. As for longevity, it looks like uncovered Spectra will last at least as long, safely, as stainless in the same climate. Covered Spectra, which costs about 40% more and is more difficult to splice, might still end up being long-term cheaper, as it will basically be immortal. That's why I'm recommending it to cruisers who expect to be in the Tropics for any length of time. Might make a difference in resale value, too. And even with the extra cover weight, it's still lighter than wire. Fair leads, Brion Toss
B24: Swaged rigging varies in quality depending upon the operator and type of machine. Mechanical fittings are undoubtedly the best, but are more expensive and take more time (usually) than swaged fittings. See quote below:
B26: Swaged fittings are cheaper (Less costly) in materials and labor for a shop equipped with swaging equipment. If they do enough rigging to justify the initial investment in tooling, it makes sense. The shop can do more rigging, offer a more economical alternative to the consumer and turn a higher profit margin as well. When I re-rigged Lealea last year, the rigger at Ala Wai Marine initially questioned my choice of Sta-Lok fittings and tried to convince me to use swaged fittings instead. He based his argument on cost, pointing out that I would save a fair amount of money if I used swaged fittings. I told him I had made my decision and would go with the Sta-Loks. A little while later he came over to the boat and watched us at work for while. When I walked up to him he asked a few questions about what my long term plans were and what I intended doing with the boat. He looked the boat over and said "OK, now I understand. Come over to the shop later and I'll show you how to set up that rig properly." When I went to his shop that afternoon, he explained how most boat owners didn't want to go to the effort of installing mechanical end fittings themselves and didn't want to spend the money to have the yard do the work either. That, combined with the cost of the fittings themselves, caused most boat owners facing new standing rigging to opt for the less expensive swaged fittings. Swaged fittings work fine for 99 out of 100 applications and the have the advantages of being less costly for the boat owner and more profitable for the yard. However if you want the strongest, longest lived setup available with the added advantage of reuseability and installation with common hand tools, and if cost is a secondary concern, mechanical fittings such as Sta-Lok or Norseman would be my choice
B28: In making this decision you are balancing a number of different variables: price, installation hours, convenience, strength, and lifetime of the rig. If you DIY it the consideration is different than if you turn the problem over to a professional rigger who is interested in making a profit as well. The reason many boats are NOT rigged with the clearly superior mechanical (swageless) fittings are the cost of the fittings and the labor involved. In looking through posts on the Internet several people refer to swage failures but nobody has every referred to a mechanical fitting failure. There are few references to Hi-Mod fittings (IMO clearly superior) and many to Navtec / Stalok fittings. Navtecs in the older posts, mostly. There is test evidence that Sta-Lok fittings are much superior to Navtec and I think Hi-Mods are superior to both - mostly because they don't require new crown rings each time you open them up and they are essentially fail-safe in design.
B30: Q 6. Do you have any knowledge from trials or reality what happens if the mast is hit by lightning? Usually the lightening will follow the mast as it is the path of least resistance. Lightening is high voltage but relatively low amperage. This line does not conduct so the only problem is if the temp would get high enough to melt it. The heat would have to conduct thru the mast brackets, then thru the line terminator to the line. I recently read an article in Pro Boat builders mag about lightening on a carbon mast. They inspected it using several techniques but the damage was only to about 18 inches from the mast. So the temp did not get high enough beyond that to delaminate the material. Having said all this I think we just don't really have enough concrete info to make a clear statement here. There are too many variables. But, I think it is the same with steel rigging, only there is more history, but what can we predict about lightening?
B31: http://www.cruisersforum.com/forums/f116/dynex-dux-synthetic-rigging-59687.htmlHaving used it on my runners, I am pleased, "for this application". I have noticed a PRONOUNCED difference in the way the runners change tune, VS the old wire, over a 40 degree temperature range. For a shorter, fatter, extrusion that is easy to keep in column, this may not be an issue. Indeed, many are pleased with their results. For long, skinny extrusions like mine, where lowest stretch and temperature stability are paramount, I will be switching to "compact strand wire", and stick with my StaLocs. M. John Franta's last comments: Originally Posted by echidna Hi Brion, Well, I would say that my 0-30 Centigrade temperature range is quite reasonable, even conservative, for a boat left in the water year round (or hauled for winter rig-in) in New Jersey (where I used to sail), having on the one hand wilted in summer heat in the high 90's (Fahrenheit), and used my former boat as an ice breaker in the destination harbor (and near frozen to death) on a December trip to Mamaroneck, NY. Regarding loads and creep, I just went to the Colligo site to refresh my memory on their creep data, and could not find the relevant information. It seems to have been removed - Google cache still has it though. Assuming the old data was correct, a load 12% of breaking strength would cause creep of over 3" per year in 50ft at 22 deg C. I'm not sure that is acceptable. The question now is, was that old Colligo data valid, and what happened to it? Insofar as creep is probably the dominant consideration in sizing Dyneema for stays, it's important to have good information on it. I'd also like to raise another point related to temperature effects, and that is the temperature dependence of creep. Creep is typically strongly dependent on temperature, and the equation on the old Colligo graph would imply that the creep rate for a given load in Dyneema doubles with every 4 deg C temperature increase. So in discussing creep, it is surely essential to indicate the expected ambient temperature. Temperatures in the tropics could easily be 5-10 deg C higher than the 22 deg C reference point used in the old Colligo data. Probably a topic for another thread, really. John: Due to many issues with understanding the creep data (or misunderstanding it), we are keeping it interrnal now. We can assist with sizing Colligo Dux Rigging with anyone who asks. For the time this is how we size the line in order of priority: 1. Stretch 2. Creep 3. Breaking strength. We almost always have the line at much less than 10% of strength effiiciency, mostly based on stretch. Creep is figured at pretension and 0.1" per year is a maximum target. (@22C). This seems to be a good conservative number as we have many boats now rigged with normal travel turnbuckles that have not gotten into creep issues. One 65' monohull in the Carribean. For offshore boats we factor in long term dynamic loads as well. Keep in mind that creep happens over time, so average temperatures are what you need to look at, or time at temp if you have access to that kind of data.

Sheet Hayn Catalog
A2: HAYN RIGGING PRODUCTS
A3: 2012 Pricing List - Effective January 01, 2012 | C3: Revision 12.01
A4: Item | B4: Description | C4: List Price | D4: Cat. Page | E4: FISCO PRICE
A5: Rigging Hardware Section | E5: 0.7
A7: Rigging Turnbuckles - Jaw to Jaw ( T Bolt ) (Open Forged Bronze TFBJ Series)
A8: 14TFBJ | B8: Jaw to Jaw TFB 1/4" Jaw 1/4" Pin | C8: 39.52 | D8: 5 | E8: =IF(ISBLANK(C8),"",C8*$E$5) -> 27.664
A9: 14TFBJB | B9: Jaw to Jaw TFB 1/4" Jaw 1/4" Pin-UC | C9: 37.87 | D9: 5 | E9: =IF(ISBLANK(C9),"",C9*$E$5) -> 26.509
A10: 516TFBJ | B10: Jaw to Jaw TFB 5/16" Jaw 5/16" Pin | C10: 61.93 | D10: 5 | E10: 43.351
A11: 516TFBJB | B11: Jaw to Jaw TFB 5/16" Jaw 5/16" Pin-UC | C11: 61.93 | D11: 5 | E11: 43.351
A12: 38TFBJ | B12: Jaw to Jaw TFB 3/8" Jaw 3/8" Pin | C12: 77.79 | D12: 5 | E12: 54.453
A13: 38TFBJB | B13: Jaw to Jaw TFB 3/8" Jaw 3/8" Pin-UC | C13: 77.79 | D13: 5 | E13: 54.453
A14: 12TFBJ | B14: Jaw to Jaw TFB 1/2" Jaw 1/2" Pin | C14: 120.43 | D14: 5 | E14: 84.301
A15: 12TFBJB | B15: Jaw to Jaw TFB 1/2" Jaw 1/2" Pin-UC | C15: 120.43 | D15: 5 | E15: 84.301
A16: 58TFBJ | B16: Jaw to Jaw TFB 5/8" Jaw 5/8"Pin | C16: 201.08 | D16: 5 | E16: 140.756
A17: 58TFBJB | B17: Jaw to Jaw TFB 5/8" Jaw 5/8" Pin-UC | C17: 201.08 | D17: 5 | E17: 140.756
A18: 34TFBJ | B18: Jaw to Jaw TFB 3/4" Jaw 3/4" Pin | C18: 344.08 | D18: 5 | E18: 240.856
A19: 34TFBJB | B19: Jaw to Jaw TFB 3/4" Jaw 3/4" Pin-UC | C19: 344.08 | D19: 5 | E19: 240.856
A21: Rigging Turnbuckles - Eye Toggle to Eye Toggle (Forged Bronze ETFBJ Series)
A22: 14ETFBJ | B22: Eye Toggle to Eye Toggle ETFBJ 1/4" Pin 1/4" Jaw | C22: 50.97 | D22: 5 | E22: 35.679
A23: 14ETFBJB | B23: Eye Toggle to Eye Toggle ETFBJ 1/4" Pin 1/4" Jaw-UC | C23: 50.97 | D23: 5 | E23: 35.679
A24: 516ETFBJ | B24: Eye Toggle to Eye Toggle ETFBJ 5/16" Pin 5/16" Jaw | C24: 64.79 | D24: 5 | E24: 45.353
A25: 516ETFBJB | B25: Eye Toggle to Eye Toggle ETFBJ 5/16" Pin 5/16" Jaw-UC | C25: 64.79 | D25: 5 | E25: 45.353
A26: 38ETFBJ | B26: Eye Toggle to Eye Toggle ETFBJ 3/8" Pin 3/8" Jaw | C26: 77.79 | D26: 5 | E26: 54.453
A27: 38ETFBJB | B27: Eye Toggle to Eye Toggle ETFBJ 3/8" Pin 3/8" Jaw-UC | C27: 77.79 | D27: 5 | E27: 54.453
A28: 12ETFBJ | B28: Eye Toggle to Eye Toggle ETFBJ 1/2" Pin 1/2" Jaw | C28: 120.43 | D28: 5 | E28: 84.301
A29: 12ETFBJB | B29: Eye Toggle to Eye Toggle ETFBJ 1/2" Pin 1/2" Jaw-UC | C29: 120.43 | D29: 5 | E29: 84.301
A30: 58ETFBJ | B30: Eye Toggle to Eye Toggle ETFBJ 5/8" Pin 5/8" Jaw | C30: 201.08 | D30: 5 | E30: 140.756
A31: 58ETFBJB | B31: Eye Toggle to Eye Toggle ETFBJ 5/8" Pin 5/8" Jaw-UC | C31: 201.08 | D31: 5 | E31: 140.756
A32: 34ETFBJ | B32: Eye Toggle to Eye Toggle ETFBJ 3/4" Pin 3/4" Jaw | C32: 355.54 | D32: 5 | E32: 248.878
A33: 34ETFBJB | B33: Eye Toggle to Eye Toggle ETFBJ 3/4" Pin 3/4" Jaw-UC | C33: 355.54 | D33: 5 | E33: 248.878
A34: 78ETFBJ | B34: Eye Toggle to Eye Toggle ETFBJ 7/8" Pin 7/8" Jaw | C34: 974.9 | D34: 5 | E34: 682.43
A35: 1ETFBJ | B35: Eye Toggle to Eye Toggle ETFBJ 1" Pin 1" Jaw | C35: 2007.14 | D35: 5 | E35: 1404.998
A37: Rigging Turnbuckles - Jaw to Swage ( T Bolt ) (Forged Bronze TFBS Series) - Imperial Wire Sizes
A38: 14TFBS332 | B38: Jaw to Swage TFB 3/32" Wire 1/4" Pin | C38: 38.6 | D38: 6 | E38: 27.02
A39: 14TFBS332B | B39: Jaw to Swage TFB 3/32" Wire 1/4" Pin-UC | C39: 36.97 | D39: 6 | E39: 25.879
A40: 14TFBS18 | B40: Jaw to Swage TFB 1/8" Wire 1/4" Pin | C40: 38.64 | D40: 6 | E40: 27.048
A41: 14TFBS18B | B41: Jaw to Swage TFB 1/8" Wire 1/4" Pin-UC | C41: 36.99 | D41: 6 | E41: 25.893
A42: 14TFBS532 | B42: Jaw to Swage TFB 5/32" Wire 1/4" Pin | C42: 37.85 | D42: 6 | E42: 26.495
A43: 14TFBS532B | B43: Jaw to Swage TFB 5/32" Wire 1/4" Pin-UC | C43: 37.85 | D43: 6 | E43: 26.495
A44: 516TFBS532 | B44: Jaw to Swage TFB 5/32" Wire 5/16" Pin | C44: 42.43 | D44: 6 | E44: 29.701
A45: 516TFBS532B | B45: Jaw to Swage TFB 5/32" Wire 5/16" Pin-UC | C45: 42.43 | D45: 6 | E45: 29.701
A46: 516TFBS316 | B46: Jaw to Swage TFB 3/16" Wire 5/16" Pin | C46: 45.59 | D46: 6 | E46: 31.913
A47: 516TFBS316B | B47: Jaw to Swage TFB 3/16" Wire 5/16" Pin-UC | C47: 45.59 | D47: 6 | E47: 31.913
A48: 38TFBS316 | B48: Jaw to Swage TFB 3/16" Wire 3/8" Pin | C48: 65.53 | D48: 6 | E48: 45.871
A49: 38TFBS316B | B49: Jaw to Swage TFB 3/16" Wire 3/8" Pin-UC | C49: 65.53 | D49: 6 | E49: 45.871
A50: 38TFBS732 | B50: Jaw to Swage TFB 7/32" Wire 3/8" Pin | C50: 68.63 | D50: 6 | E50: 48.041
A51: 38TFBS732B | B51: Jaw to Swage TFB 7/32" Wire 3/8" Pin-UC | C51: 68.63 | D51: 6 | E51: 48.041
A52: 38TFBS14 | B52: Jaw to Swage TFB 1/4" Wire 3/8" Pin | C52: 70.57 | D52: 6 | E52: 49.399
A53: 38TFBS14B | B53: Jaw to Swage TFB 1/4" Wire 3/8" Pin-UC | C53: 70.57 | D53: 6 | E53: 49.399
A54: 12TFBS14 | B54: Jaw to Swage TFB 1/4" Wire 1/2" Pin | C54: 93.36 | D54: 6 | E54: 65.352
A55: 12TFBS14B | B55: Jaw to Swage TFB 1/4" Wire 1/2" Pin-UC | C55: 93.36 | D55: 6 | E55: 65.352
A56: 12TFBS932 | B56: Jaw to Swage TFB 9/32" Wire 1/2" Pin | C56: 98.53 | D56: 6 | E56: 68.971
A57: 12TFBS932B | B57: Jaw to Swage TFB 9/32" Wire 1/2" Pin-UC | C57: 98.53 | D57: 6 | E57: 68.971
A58: 12TFBS516 | B58: Jaw to Swage TFB 5/16" Wire 1/2" Pin | C58: 106.25 | D58: 6 | E58: 74.375
A59: 12TFBS516B | B59: Jaw to Swage TFB 5/16" Wire 1/2" Pin-UC | C59: 106.25 | D59: 6 | E59: 74.375
A60: 58TFBS516 | B60: Jaw to Swage TFB 5/16" Wire 5/8" Pin | C60: 147.02 | D60: 6 | E60: 102.914
A61: 58TFBS516B | B61: Jaw to Swage TFB 5/16" Wire 5/8" Pin-UC | C61: 147.02 | D61: 6 | E61: 102.914
A62: 58TFBS38 | B62: Jaw to Swage TFB 3/8" Wire 5/8" Pin | C62: 157.65 | D62: 6 | E62: 110.355
A63: 58TFBS38B | B63: Jaw to Swage TFB 3/8" Wire 5/8" Pin-UC | C63: 157.65 | D63: 6 | E63: 110.355
A64: 34TFBS716 | B64: Jaw to Swage TFB 7/16" Wire 3/4" Pin | C64: 273.35 | D64: 6 | E64: 191.345
A65: 34TFBS716B | B65: Jaw to Swage TFB 7/16" Wire 3/4" Pin-UC | C65: 273.35 | D65: 6 | E65: 191.345
A66: 34TFBS12 | B66: Jaw to Swage TFB 1/2" Wire 3/4" Pin | C66: 321.14 | D66: 6 | E66: 224.798
A67: 34TFBS12B | B67: Jaw to Swage TFB 1/2" Wire 3/4" Pin-UC | C67: 321.14 | D67: 6 | E67: 224.798
A69: Rigging Turnbuckles - Jaw to Swage ( T Bolt ) (Forged Bronze TFBS Series) - Metric Wire Sizes
A70: 14TFBSM03 | B70: Jaw to Swage TFB 3mm Wire 1/4" Pin | C70: 38.64 | D70: 6 | E70: 27.048
A71: 14TFBSM03B | B71: Jaw to Swage TFB 3mm Wire 1/4" Pin -UC | C71: 36.99 | D71: 6 | E71: 25.893
A72: 14TFBSM04 | B72: Jaw to Swage TFB 4mm Wire 1/4" Pin | C72: 37.85 | D72: 6 | E72: 26.495
A73: 14TFBSM04B | B73: Jaw to Swage TFB 4mm Wire 1/4" Pin-UC | C73: 37.85 | D73: 6 | E73: =IF(ISBLANK(C73),"",C73*$E$5) -> 26.495
A74: 516TFBSM04 | B74: Jaw to Swage TFB 4mm Wire 5/16" Pin | C74: 42.43 | D74: 6 | E74: 29.701
A75: 516TFBSM04B | B75: Jaw to Swage TFB 4mm Wire 5/16" Pin-UC | C75: 42.43 | D75: 6 | E75: 29.701
A76: 516TFBSM05 | B76: Jaw to Swage TFB 5mm Wire 5/16" Pin | C76: 45.59 | D76: 6 | E76: 31.913
A77: 516TFBSM05B | B77: Jaw to Swage TFB 5mm Wire 5/16" Pin-UC | C77: 45.59 | D77: 6 | E77: 31.913
A78: 38TFBSM05 | B78: Jaw to Swage TFB 5mm Wire 3/8" Pin | C78: 65.73 | D78: 6 | E78: 46.011
A79: 38TFBSM05B | B79: Jaw to Swage TFB 5mm Wire 3/8" Pin-UC | C79: 65.53 | D79: 6 | E79: 45.871
A80: 38TFBSM06 | B80: Jaw to Swage TFB 6mm Wire 3/8" Pin | C80: 70.57 | D80: 6 | E80: 49.399
A81: 38TFBSM06B | B81: Jaw to Swage TFB 6mm Wire 3/8" Pin-UC | C81: 70.57 | D81: 6 | E81: 49.399
A82: 12TFBSM06 | B82: Jaw to Swage TFB 6mm Wire 1/2" Pin | C82: 93.36 | D82: 6 | E82: 65.352
A83: 12TFBSM06B | B83: Jaw to Swage TFB 6mm Wire 1/2" Pin-UC | C83: 93.36 | D83: 6 | E83: 65.352
A84: 12TFBSM07 | B84: Jaw to Swage TFB 7mm Wire 1/2" Pin | C84: 93.36 | D84: 6 | E84: 65.352
A85: 12TFBSM07B | B85: Jaw to Swage TFB 7mm Wire 1/2" Pin-UC | C85: 93.36 | D85: 6 | E85: 65.352
A86: 12TFBSM08 | B86: Jaw to Swage TFB 8mm Wire 1/2" Pin | C86: 93.36 | D86: 6 | E86: 65.352
A87: 12TFBSM08B | B87: Jaw to Swage TFB 8mm Wire 1/2" Pin-UC | C87: 93.36 | D87: 6 | E87: 65.352
A88: 58TFBSM08 | B88: Jaw to Swage TFB 8mm Wire 5/8" Pin | C88: 157.65 | D88: 6 | E88: 110.355
A89: 58TFBSM08B | B89: Jaw to Swage TFB 8mm Wire 5/8" Pin-UC | C89: 157.65 | D89: 6 | E89: 110.355
A90: 58TFBSM10 | B90: Jaw to Swage TFB 10mm Wire 5/8" Pin | C90: 157.65 | D90: 6 | E90: 110.355
A91: 58TFBSM10B | B91: Jaw to Swage TFB 10mm Wire 5/8" Pin-UC | C91: 157.65 | D91: 6 | E91: 110.355
A92: 34TFBSM11 | B92: Jaw to Swage TFB 11mm Wire 3/4" Pin | C92: 284.16 | D92: 6 | E92: 198.912
A93: 34TFBSM11B | B93: Jaw to Swage TFB 11mm Wire 3/4" Pin-UC | C93: 284.16 | D93: 6 | E93: 198.912
A94: 34TFBSM12 | B94: Jaw to Swage TFB 12mm Wire 3/4" Pin | C94: 284.16 | D94: 6 | E94: 198.912
A95: 34TFBSM12B | B95: Jaw to Swage TFB 12mm Wire 3/4" Pin-UC | C95: 284.16 | D95: 6 | E95: 198.912
A97: Rigging Turnbuckles - Eye Toggle to Swage (Forged Bronze ETFB Series) - Imperial Wire Sizes
A98: 14ETFB332 | B98: Eye Toggle to Swage ETFB 3/32" Wire 1/4" Jaw | C98: 39.86 | D98: 7 | E98: 27.902
A99: 14ETFB332B | B99: Eye Toggle to Swage ETFB 3/32" Wire 1/4" Jaw-UC | C99: 39.86 | D99: 7 | E99: 27.902
A100: 14ETFB18 | B100: Eye Toggle to Swage ETFB 1/8" Wire 1/4" Jaw | C100: 39.86 | D100: 7 | E100: 27.902
A101: 14ETFB18B | B101: Eye Toggle to Swage ETFB 1/8" Wire 1/4" Jaw-UC | C101: 39.86 | D101: 7 | E101: 27.902
A102: 14ETFB532 | B102: Eye Toggle to Swage ETFB 5/32" Wire 1/4" Jaw | C102: 40.84 | D102: 7 | E102: 28.588
A103: 14ETFB532B | B103: Eye Toggle to Swage ETFB 5/32" Wire 1/4" Jaw-UC | C103: 40.84 | D103: 7 | E103: 28.588
A104: 516ETFB532 | B104: Eye Toggle to Swage ETFB 5/16" Wire 5/32" Jaw | C104: 48.74 | D104: 7 | E104: 34.118
A105: 516ETFB532B | B105: Eye Toggle to Swage ETFB 5/16" Wire 5/32" Jaw-UC | C105: 48.74 | D105: 7 | E105: 34.118
A106: 516ETFB316 | B106: Eye Toggle to Swage ETFB 3/16" Wire 5/16" Jaw | C106: 49.32 | D106: 7 | E106: 34.524
A107: 516ETFB316B | B107: Eye Toggle to Swage ETFB 3/16" Wire 5/16" Jaw-UC | C107: 49.32 | D107: 7 | E107: 34.524
A108: 38ETFB316 | B108: Eye Toggle to Swage ETFB 3/16" Wire 3/8" Jaw | C108: 68.82 | D108: 7 | E108: 48.174
A109: 38ETFB316B | B109: Eye Toggle to Swage ETFB 3/16" Wire 3/8" Jaw-UC | C109: 68.82 | D109: 7 | E109: 48.174
A110: 38ETFB732 | B110: Eye Toggle to Swage ETFB 7/32" Wire 3/8" Jaw | C110: 72.26 | D110: 7 | E110: 50.582
A111: 38ETFB732B | B111: Eye Toggle to Swage ETFB 7/32" Wire 3/8" Jaw-UC | C111: 72.26 | D111: 7 | E111: 50.582
A112: 38ETFB14 | B112: Eye Toggle to Swage ETFB 1/4" Wire 3/8" Jaw | C112: 70.57 | D112: 7 | E112: 49.399
A113: 38ETFB14B | B113: Eye Toggle to Swage ETFB 1/4" Wire 3/8" Jaw-UC | C113: 70.57 | D113: 7 | E113: 49.399
A114: 12ETFB14 | B114: Eye Toggle to Swage ETFB 1/4" Wire 1/2" Jaw | C114: 103.23 | D114: 7 | E114: 72.261
A115: 12ETFB14B | B115: Eye Toggle to Swage ETFB 1/4" Wire 1/2" Jaw-UC | C115: 103.23 | D115: 7 | E115: 72.261
A116: 12ETFB932 | B116: Eye Toggle to Swage ETFB 9/32" Wire 1/2" Jaw | C116: 120.43 | D116: 7 | E116: 84.301
A117: 12ETFB932B | B117: Eye Toggle to Swage ETFB 9/32" Wire 1/2" Jaw-UC | C117: 120.43 | D117: 7 | E117: 84.301
A118: 12ETFB516 | B118: Eye Toggle to Swage ETFB 5/16" Wire 1/2" Jaw | C118: 126.16 | D118: 7 | E118: 88.312
A119: 12ETFB516B | B119: Eye Toggle to Swage ETFB 5/16" Wire 1/2" Jaw-UC | C119: 126.16 | D119: 7 | E119: 88.312
A120: 58ETFB516 | B120: Eye Toggle to Swage ETFB 5/16" Wire 5/8" Jaw | C120: 166.31 | D120: 7 | E120: 116.417
A121: 58ETFB516B | B121: Eye Toggle to Swage ETFB 5/16" Wire 5/8" Jaw-UC | C121: 166.31 | D121: 7 | E121: 116.417
A122: 58ETFB38 | B122: Eye Toggle to Swage ETFB 3/8" Wire 5/8" Jaw | C122: 177.78 | D122: 7 | E122: 124.446
A123: 58ETFB38B | B123: Eye Toggle to Swage ETFB 3/8" Wire 5/8" Jaw-UC | C123: 177.78 | D123: 7 | E123: 124.446
A124: 34ETFB716 | B124: Eye Toggle to Swage ETFB 7/16" Wire 3/4" Jaw | C124: 286.74 | D124: 7 | E124: 200.718
A125: 34ETFB716B | B125: Eye Toggle to Swage ETFB 7/16" Wire 3/4" Jaw-UC | C125: 286.74 | D125: 7 | E125: 200.718
A126: 34ETFB12 | B126: Eye Toggle to Swage ETFB 1/2" Wire 3/4" Jaw | C126: 344.08 | D126: 7 | E126: 240.856
A127: 34ETFB12B | B127: Eye Toggle to Swage ETFB 1/2" Wire 3/4" Jaw-UC | C127: 344.08 | D127: 7 | E127: 240.856
A128: 78ETFB916 | B128: Eye Toggle to Swage ETFB 9/16" Wire 7/8" Jaw | C128: 934.75 | D128: 7 | E128: 654.325
A129: 1ETFB916 | B129: Eye Toggle to Swage ETFB 9/16" Wire 1" Jaw | C129: 1491.02 | D129: 7 | E129: 1043.714
A130: 1ETFB58 | B130: Eye Toggle to Swage ETFB 5/8" Wire 1" Jaw | C130: 1491.02 | D130: 7 | E130: 1043.714
A132: Rigging Turnbuckles - Eye Toggle to Swage (Forged Bronze ETFB Series) - Metric Wire Sizes
A133: 14ETFBM03 | B133: Eye Toggle to Swage ETFB 3mm Wire 1/4" Jaw | C133: 39.86 | D133: 7 | E133: 27.902
A134: 14ETFBM03B | B134: Eye Toggle to Swage ETFB 3mm Wire 1/4" Jaw-UC | C134: 39.86 | D134: 7 | E134: 27.902
A135: 14ETFBM04 | B135: Eye Toggle to Swage ETFB 4mm Wire 1/4" Jaw | C135: 39.86 | D135: 7 | E135: 27.902
A136: 14ETFBM04B | B136: Eye Toggle to Swage ETFB 4mm Wire 1/4" Jaw-UC | C136: 39.86 | D136: 7 | E136: 27.902
A137: 516ETFBM04 | B137: Eye Toggle to Swage ETFB 4mm Wire 5/16" Jaw | C137: 48.74 | D137: 7 | E137: =IF(ISBLANK(C137),"",C137*$E$5) -> 34.118
A138: 516ETFBM04B | B138: Eye Toggle to Swage ETFB 4mm Wire 5/16" Jaw-UC | C138: 48.74 | D138: 7 | E138: 34.118
A139: 516ETFBM05 | B139: Eye Toggle to Swage ETFB 5mm Wire 5/16" Jaw | C139: 49.32 | D139: 7 | E139: 34.524
A140: 516ETFBM05B | B140: Eye Toggle to Swage ETFB 5mm Wire 5/16" Jaw-UC | C140: 49.32 | D140: 7 | E140: 34.524
A141: 38ETFBM05 | B141: Eye Toggle to Swage ETFB 5mm Wire 3/8" Jaw | C141: 68.82 | D141: 7 | E141: 48.174
A142: 38ETFBM05B | B142: Eye Toggle to Swage ETFB 5mm Wire 3/8" Jaw-UC | C142: 68.82 | D142: 7 | E142: 48.174
A143: 38ETFBM06 | B143: Eye Toggle to Swage ETFB 6mm Wire 3/8" Jaw | C143: 70.57 | D143: 7 | E143: 49.399
A144: 38ETFBM06B | B144: Eye Toggle to Swage ETFB 6mm Wire 3/8" Jaw-UC | C144: 70.57 | D144: 7 | E144: 49.399
A145: 12ETFBM06 | B145: Eye Toggle to Swage ETFB 6mm Wire 1/2" Jaw | C145: 103.23 | D145: 7 | E145: 72.261
A146: 12ETFBM06B | B146: Eye Toggle to Swage ETFB 6mm Wire 1/2" Jaw-UC | C146: 103.23 | D146: 7 | E146: 72.261
A147: 12ETFBM07 | B147: Eye Toggle to Swage ETFB 7mm Wire 1/2" Jaw | C147: 120.43 | D147: 7 | E147: 84.301
A148: 12ETFBM07B | B148: Eye Toggle to Swage ETFB 7mm Wire 1/2" Jaw-UC | C148: 120.43 | D148: 7 | E148: 84.301
A149: 12ETFBM08 | B149: Eye Toggle to Swage ETFB 8mm Wire 1/2" Jaw | C149: 126.16 | D149: 7 | E149: 88.312
A150: 12ETFBM08B | B150: Eye Toggle to Swage ETFB 8mm Wire 1/2" Jaw-UC | C150: 126.16 | D150: 7 | E150: 88.312
A151: 58ETFBM08 | B151: Eye Toggle to Swage ETFB 8mm Wire 5/8" Jaw | C151: 166.31 | D151: 7 | E151: 116.417
A152: 58ETFBM08B | B152: Eye Toggle to Swage ETFB 8mm Wire 5/8" Jaw-UC | C152: 166.31 | D152: 7 | E152: 116.417
A153: 58ETFBM10 | B153: Eye Toggle to Swage ETFB 10mm Wire 5/8" Jaw | C153: 177.78 | D153: 7 | E153: 124.446
A154: 58ETFBM10B | B154: Eye Toggle to Swage ETFB 10mm Wire 5/8" Jaw-UC | C154: 177.78 | D154: 7 | E154: 124.446
A155: 34ETFBM11 | B155: Eye Toggle to Swage ETFB 11mm Wire 3/4" Jaw | C155: 286.74 | D155: 7 | E155: 200.718
A156: 34ETFBM11B | B156: Eye Toggle to Swage ETFB 11mm Wire 3/4" Jaw-UC | C156: 286.74 | D156: 7 | E156: 200.718
A157: 34ETFBM12 | B157: Eye Toggle to Swage ETFB 12mm Wire 3/4" Jaw | C157: 344.08 | D157: 7 | E157: 240.856
A158: 34ETFBM12B | B158: Eye Toggle to Swage ETFB 12mm Wire 3/4" Jaw-UC | C158: 344.08 | D158: 7 | E158: 240.856
A159: 78ETFBM14 | B159: Eye Toggle to Swage ETFB 14mm Wire 7/8" Jaw | C159: 934.75 | D159: 7 | E159: 654.325
A160: 1ETFBM14 | B160: Eye Toggle to Swage ETFB 14mm Wire 1" Jaw | C160: 1491.02 | D160: 7 | E160: 1043.714
A161: 1ETFBM16 | B161: Eye Toggle to Swage ETFB 16mm Wire 1" Jaw | C161: 1491.02 | D161: 7 | E161: 1043.714
A163: Rigging Turnbuckles - Eye to Swage (Forged Bronze TFBS Series) - Imperial Wire Sizes
A164: 14TFBS332E | B164: Eye to Swage TFB 3/32"Wire 1/4" Eye | C164: 39.17 | D164: 8 | E164: 27.419
A165: 14TFBS332EB | B165: Eye to Swage TFB 3/32"Wire 1/4" Eye-UC | C165: 37.53 | D165: 8 | E165: 26.271
A166: 14TFBS18E | B166: Eye to Swage TFB 1/8"Wire 1/4" Eye | C166: 39.2 | D166: 8 | E166: 27.44
A167: 14TFBS18EB | B167: Eye to Swage TFB 1/8"Wire 1/4" Eye-UC | C167: 37.55 | D167: 8 | E167: 26.285
A168: 14TFBS532E | B168: Eye to Swage TFB 5/32"Wire 1/4" Eye | C168: 42.19 | D168: 8 | E168: 29.533
A169: 14TFBS532EB | B169: Eye to Swage TFB 5/32"Wire 1/4" Eye-UC | C169: 40.54 | D169: 8 | E169: 28.378
A170: 516TFBS532E | B170: Eye to Swage TFB 5/32"Wire 5/16" Eye | C170: 50.58 | D170: 8 | E170: 35.406
A171: 516TFBS532EB | B171: Eye to Swage TFB 5/32"Wire 5/16" Eye-UC | C171: 48.94 | D171: 8 | E171: 34.258
A172: 516TFBS316E | B172: Eye to Swage TFB 3/16"Wire 5/16" Eye | C172: 52.08 | D172: 8 | E172: 36.456
A173: 516TFBS316EB | B173: Eye to Swage TFB 3/16"Wire 5/16" Eye-UC | C173: 50.44 | D173: 8 | E173: 35.308
A174: 38TFBS316E | B174: Eye to Swage TFB 3/16"Wire 3/8" Eye | C174: 60.8 | D174: 8 | E174: 42.56
A175: 38TFBS316EB | B175: Eye to Swage TFB 3/16"Wire 3/8" Eye-UC | C175: 59.17 | D175: 8 | E175: 41.419
A176: 38TFBS732E | B176: Eye to Swage TFB 7/32"Wire 3/8" Eye | C176: 67.08 | D176: 8 | E176: 46.956
A177: 38TFBS732EB | B177: Eye to Swage TFB 7/32"Wire 3/8" Eye-UC | C177: 65.46 | D177: 8 | E177: 45.822
A178: 38TFBS14E | B178: Eye to Swage TFB 1/4"Wire 3/8" Eye | C178: 67.61 | D178: 8 | E178: 47.327
A179: 38TFBS14EB | B179: Eye to Swage TFB 1/4"Wire 3/8" Eye-UC | C179: 65.99 | D179: 8 | E179: 46.193
A180: 12TFBS14E | B180: Eye to Swage TFB 1/4"Wire 1/2" Eye | C180: 93.18 | D180: 8 | E180: 65.226
A181: 12TFBS14EB | B181: Eye to Swage TFB 1/4"Wire 1/2" Eye-UC | C181: 89.93 | D181: 8 | E181: 62.951
A182: 12TFBS932E | B182: Eye to Swage TFB 9/32"Wire 1/2" Eye | C182: 100.96 | D182: 8 | E182: 70.672
A183: 12TFBS932EB | B183: Eye to Swage TFB 9/32"Wire 1/2" Eye-UC | C183: 97.71 | D183: 8 | E183: 68.397
A184: 12TFBS516E | B184: Eye to Swage TFB 5/16"Wire 1/2" Eye | C184: 106.25 | D184: 8 | E184: 74.375
A185: 12TFBS516EB | B185: Eye to Swage TFB 5/16"Wire 1/2" Eye-UC | C185: 102.99 | D185: 8 | E185: 72.093
A186: 58TFBS516E | B186: Eye to Swage TFB 5/16"Wire 5/8" Eye | C186: 152.68 | D186: 8 | E186: 106.876
A187: 58TFBS516EB | B187: Eye to Swage TFB 5/16"Wire 5/8" Eye-UC | C187: 149.44 | D187: 8 | E187: 104.608
A188: 58TFBS38E | B188: Eye to Swage TFB 3/8"Wire 5/8" Eye | C188: 161.69 | D188: 8 | E188: 113.183
A189: 58TFBS38EB | B189: Eye to Swage TFB 3/8"Wire 5/8" Eye-UC | C189: 158.45 | D189: 8 | E189: 110.915
A190: 34TFBS716E | B190: Eye to Swage TFB 7/16"Wire 3/4" Eye | C190: 275.26 | D190: 8 | E190: 192.682
A191: 34TFBS716EB | B191: Eye to Swage TFB 7/16"Wire 3/4" Eye-UC | C191: 270.38 | D191: 8 | E191: 189.266
A192: 34TFBS12E | B192: Eye to Swage TFB 1/2"Wire 3/4" Eye | C192: 294.04 | D192: 8 | E192: 205.828
A193: 34TFBS12EB | B193: Eye to Swage TFB 1/2"Wire 3/4" Eye-UC | C193: 289.16 | D193: 8 | E193: 202.412
A194: 78TFBS916E | B194: Eye to Swage TFB 9/16"Wire 7/8" Eye | C194: 773.75 | D194: 8 | E194: 541.625
A195: 1TFBS58E | B195: Eye to Swage TFB 5/8"Wire 1.0" Eye | C195: 1136.09 | D195: 8 | E195: 795.263
A197: Rigging Turnbuckles - Eye to Swage (Forged Bronze TFBS Series) - Metric Wire Sizes
A198: 14TFBSM03E | B198: Eye to Swage TFB 3mm Wire 1/4" Eye | C198: 39.2 | D198: 8 | E198: 27.44
A199: 14TFBSM03EB | B199: Eye to Swage TFB 3mm Wire 1/4" Eye-UC | C199: 37.55 | D199: 8 | E199: 26.285
A200: 14TFBSM04E | B200: Eye to Swage TFB 4mm Wire 1/4" Eye | C200: 42.19 | D200: 8 | E200: 29.533
A201: 14TFBSM04EB | B201: Eye to Swage TFB 4mm Wire 1/4" Eye-UC | C201: 40.54 | D201: 8 | E201: =IF(ISBLANK(C201),"",C201*$E$5) -> 28.378
A202: 516TFBSM04E | B202: Eye to Swage TFB 4mm Wire 5/16" Eye | C202: 52.08 | D202: 8 | E202: 36.456
A203: 516TFBSM04EB | B203: Eye to Swage TFB 4mm Wire 5/16" Eye-UC | C203: 50.44 | D203: 8 | E203: 35.308
A204: 516TFBSM05E | B204: Eye to Swage TFB 5mm Wire 5/16" Eye | C204: 52.08 | D204: 8 | E204: 36.456
A205: 516TFBSM05EB | B205: Eye to Swage TFB 5mm Wire 5/16" Eye-UC | C205: 50.44 | D205: 8 | E205: 35.308
A206: 38TFBSM05E | B206: Eye to Swage TFB 5mm Wire 3/8" Eye | C206: 60.8 | D206: 8 | E206: 42.56
A207: 38TFBSM05EB | B207: Eye to Swage TFB 5mm Wire 3/8" Eye-UC | C207: 59.17 | D207: 8 | E207: 41.419
A208: 38TFBSM06E | B208: Eye to Swage TFB 6mm Wire 3/8" Eye | C208: 67.61 | D208: 8 | E208: 47.327
A209: 38TFBSM06EB | B209: Eye to Swage TFB 6mm Wire 3/8" Eye-UC | C209: 65.99 | D209: 8 | E209: 46.193
... 2081 more rows

Sheet Saved Configurations
B3: ID NBR | C3: ID | D3: LIST | E3: TYPE | F3: ROW | G3: RANGE | H3: Elem. Cost | I3: Wire Cost | J3: Tot Cost
B4: 1 | C4: All Hi-Mod with 7/16" V1 | D4: =CONCATENATE(B4," - ",E4," ",C4) -> 1 - Discontinuous Rigging All Hi-Mod with 7/16" V1 | E4: Discontinuous Rigging | F4: =(B4-1)*13+19 -> 19 | G4: =CONCATENATE("C",F4,":J",F4+10) -> C19:J29 | H4: 2886.33 | I4: 1112.01 | J4: =I4+H4 -> 3998.34
B5: =B4+1 -> 2 | C5: Mixed Hi-Mod and Swaged with 7/16" V1 | D5: =CONCATENATE(B5," - ",E5," ",C5) -> 2 - Discontinuous Rigging Mixed Hi-Mod and Swaged with 7/16" V1 | E5: Discontinuous Rigging | F5: =(B5-1)*13+19 -> 32 | G5: =CONCATENATE("C",F5,":J",F5+10) -> C32:J42 | H5: 2235.88 | I5: 1112.01 | J5: =I5+H5 -> 3347.89
B6: =B5+1 -> 3 | C6: All Hi-Mod with 10mm 1x19 V1 | D6: 3 - Discontinuous Rigging All Hi-Mod with 10mm 1x19 V1 | E6: Discontinuous Rigging | F6: 45 | G6: C45:J55 | H6: 1910.49 | I6: 1306.94 | J6: 3217.43
B7: 4 | C7: All Swaged with 10mm 1x19 V1 | D7: 4 - Discontinuous Rigging All Swaged with 10mm 1x19 V1 | E7: Discontinuous Rigging | F7: 58 | G7: C58:J68 | H7: 1126.84 | I7: 1306.94 | J7: 2433.78
B8: 5 | C8: Mixed Hi-Mod and Swaged with 10mm 1x19 V1 | D8: 5 - Discontinuous Rigging Mixed Hi-Mod and Swaged with 10mm 1x19 V1 | E8: Discontinuous Rigging | F8: 71 | G8: C71:J81 | H8: 2139.14 | I8: 1306.94 | J8: 3446.08
B9: 6 | C9: All swaged with 7/16" V1 | D9: 6 - Discontinuous Rigging All swaged with 7/16" V1 | E9: Discontinuous Rigging | F9: 84 | G9: C84:J94 | H9: 1566.73 | I9: 1112.01 | J9: 2678.74
B10: 7 | C10: All Hi-Mod | D10: 7 - Continuous Rigging All Hi-Mod | E10: Continuous Rigging | F10: 97 | G10: C97:J107 | H10: 1560.94 | I10: 1112.01 | J10: 2672.95
B11: 8 | C11: All Hi-Mod 10mm-Compact Strand V1 Swaged forestay | D11: 8 - Discontinuous Rigging All Hi-Mod 10mm-Compact Strand V1 Swaged forestay | E11: Discontinuous Rigging | F11: 110 | G11: C110:J120 | H11: 2060.25 | I11: 1119.45 | J11: 3179.7
B12: 9 | C12: V1 Price Analysis 10mm Dyrform | D12: 9 - Discontinuous Rigging V1 Price Analysis 10mm Dyrform | E12: Discontinuous Rigging | F12: 123 | G12: C123:J133 | H12: 369.47 | I12: 245.03 | J12: 614.5
B13: 10 | C13: V1 Price Analysis 7/16 1x19 | D13: =CONCATENATE(B13," - ",E13," ",C13) -> 10 - Discontinuous Rigging V1 Price Analysis 7/16 1x19 | E13: Discontinuous Rigging | F13: 136 | G13: =CONCATENATE("C",F13,":J",F13+10) -> C136:J146 | H13: 837.28 | I13: 105.6 | J13: 942.88
B14: 11 | C14: All Hi-Mod 10mm Compact Strand V1 w/o Forestay | D14: 11 - Discontinuous Rigging All Hi-Mod 10mm Compact Strand V1 w/o Forestay | E14: Discontinuous Rigging | F14: 149 | G14: C149:J159 | H14: 1577.28 | I14: 837.65 | J14: 2414.93
B15: 12 | C15: All Hi-Mod 10mm-Compact Strand V1 | D15: 12 - Discontinuous Rigging All Hi-Mod 10mm-Compact Strand V1 | E15: Discontinuous Rigging | F15: 162 | G15: C162:J172 | H15: 2133.65 | I15: 1119.45 | J15: 3253.1
B16: =current_config_lookup_value -> 8 | D16: Current | E16: =VLOOKUP(current_config_lookup_value,save_meta,4) -> Discontinuous Rigging
B18: =ROUND(ROW()/13,0) -> 1 | C18: =CONCATENATE(VLOOKUP(B18,save_meta,4)," ",VLOOKUP(B18,save_meta,2)) -> Discontinuous Rigging All Hi-Mod with 7/16" V1 | D18: Wire Size | E18: Length (m) | F18: Pin (Eye) Size | G18: Top Terminal | H18: Bottom Terminal | I18: Top Toggle | J18: Bottom Toggle
C19: 2 | D19: 10mm | E19: 10.2 | F19: 5/8" | G19: 58CTEM10 | H19: 58CTEM10
C20: 2 | D20: 7/16" | E20: 5.5 | F20: 3/4" | G20: 34CTE716 | H20: 34CTS716 | J20: 34EFBJ
C21: 2 | D21: 10mm | E21: 15.7 | F21: 5/8" | G21: 58CTEM10 | H21: 58CTSM10
C22: 2 | D22: 8mm | E22: 4 | F22: 5/8" | G22: 58CTEM08 | H22: 58CTSM08
C23: 2 | D23: 8mm | E23: 9.5 | F23: 5/8" | G23: 58CTEM08 | H23: 58CTSM08
C24: 4 | D24: 8mm | E24: 5.2 | F24: 5/8" | G24: 58CTEM08 | H24: 58CTSM08
C25: 1 | D25: 10mm | E25: 15.9 | F25: 5/8" | G25: 58CTEM10 | H25: 58CTSM10 | I25: FT-20C | J25: 58EFBJ
C26: 1 | D26: 11mm | E26: 16.56 | F26: 5/8" | G26: CSS72BLK | H26: CSS72BLK
C27: 0 | D27: 10mm | E27: 16.5 | F27: 5/8" | G27: 58CTEM10 | H27: 58CTEM10 | I27: FT-20C
C28: 0 | D28: 8mm | E28: 10.5 | F28: 1/2" | G28: 12CTSM08 | H28: 12CTSM08
C29: 0 | D29: 10mm | E29: 0 | F29: n/a | G29: CTICCM10 | H29: CTICCM10
B31: =ROUND(ROW()/13,0) -> 2 | C31: =CONCATENATE(VLOOKUP(B31,save_meta,4)," ",VLOOKUP(B31,save_meta,2)) -> Discontinuous Rigging Mixed Hi-Mod and Swaged with 7/16" V1 | D31: Wire Size | E31: Length (m) | F31: Pin (Eye) Size | G31: Top Terminal | H31: Bottom Terminal | I31: Top Toggle | J31: Bottom Toggle
C32: 2 | D32: 10mm | E32: 10.2 | F32: 5/8" | G32: 58RCSEM10 | H32: 58RCSEM10
C33: 2 | D33: 7/16" | E33: 5.5 | F33: 3/4" | G33: 34RCSE716 | H33: 34CTS716 | J33: 34EFBJ
C34: 2 | D34: 10mm | E34: 15.7 | F34: 5/8" | G34: 58RCSEM10 | H34: 58CTSM10 | J34: 58EFBJ
C35: 2 | D35: 8mm | E35: 4 | F35: 5/8" | G35: 58RCSEM08 | H35: 58CTSM08 | J35: 0
C36: 2 | D36: 8mm | E36: 9.5 | F36: 5/8" | G36: 58RCSEM08 | H36: 58CTSM08 | J36: 58EFBJ
C37: 4 | D37: 8mm | E37: 5.2 | F37: 5/8" | G37: 58RCSEM08 | H37: 58CTSM08 | J37: 0
C38: 1 | D38: 10mm | E38: 15.9 | F38: 5/8" | G38: 58RCSEM08 | H38: 34CTSM10 | I38: FT-20C
C39: 1 | D39: 11mm | E39: 16.56 | F39: 5/8" | G39: CSS72BLK | H39: CSS72BLK
C40: 0 | D40: 10mm | E40: 16.5 | F40: 5/8" | G40: 58RCSEM10 | H40: 58CTEM10 | I40: FT-20C
C41: 0 | D41: 8mm | E41: 10.5 | F41: 1/2" | G41: 12CTSM08 | H41: 12CTSM08
C42: 0 | D42: 10mm | E42: 0 | F42: n/a | G42: CTICCM10 | H42: CTICCM10
B44: =ROUND(ROW()/13,0) -> 3 | C44: =CONCATENATE(VLOOKUP(B44,save_meta,4)," ",VLOOKUP(B44,save_meta,2)) -> Discontinuous Rigging All Hi-Mod with 10mm 1x19 V1 | D44: Wire Size | E44: Length (m) | F44: Pin (Eye) Size | G44: Top Terminal | H44: Bottom Terminal | I44: Top Toggle | J44: Bottom Toggle
C45: 2 | D45: 10mm | E45: 10.2 | F45: 5/8" | G45: 58CTEM10 | H45: 58CTEM10
C46: 2 | D46: 10mm | E46: 5.5 | F46: 5/8" | G46: 58CTEM10 | H46: 58CTEM10
C47: 2 | D47: 10mm | E47: 15.7 | F47: 5/8" | G47: 58CTEM10 | H47: 58CTSM10 | J47: 58EFBJ
C48: 2 | D48: 8mm | E48: 4 | F48: 5/8" | G48: 58CTEM08 | H48: 58CTSM08
C49: 2 | D49: 8mm | E49: 9.5 | F49: 5/8" | G49: 58CTEM08 | H49: 58CTSM08 | J49: 58EFBJ
C50: 4 | D50: 8mm | E50: 5.2 | F50: 5/8" | G50: 58CTEM08 | H50: 58CTSM08
C51: 1 | D51: 10mm | E51: 15.9 | F51: 5/8" | G51: 58CTEM10 | H51: 58CTSM10 | I51: FT-20C
C52: 1 | D52: 11mm | E52: 16.56 | F52: 5/8" | G52: CSS72BLK | H52: CSS72BLK
C53: 0 | D53: 10mm | E53: 16.5 | F53: 5/8" | G53: 58CTEM10 | H53: 58CTEM10 | I53: FT-20C
C54: 0 | D54: 8mm | E54: 10.5 | F54: 1/2" | G54: 12CTSM08 | H54: 12CTSM08
C55: 0 | D55: 10mm | E55: 0 | F55: n/a | G55: CTICCM10 | H55: CTICCM10
B57: =ROUND(ROW()/13,0) -> 4 | C57: =CONCATENATE(VLOOKUP(B57,save_meta,4)," ",VLOOKUP(B57,save_meta,2)) -> Discontinuous Rigging All Swaged with 10mm 1x19 V1 | D57: Wire Size | E57: Length (m) | F57: Pin (Eye) Size | G57: Top Terminal | H57: Bottom Terminal | I57: Top Toggle | J57: Bottom Toggle
C58: 2 | D58: 10mm | E58: 10.2 | F58: 5/8" | G58: 58RCSEM10 | H58: 58RCSEM10
C59: 2 | D59: 10mm | E59: 5.5 | F59: 5/8" | G59: 58RCSEM10 | H59: 58RCSSM10
C60: 2 | D60: 10mm | E60: 15.7 | F60: 5/8" | G60: 58RCSEM10 | H60: 58RCSSM10 | J60: 58EFBJ
C61: 2 | D61: 8mm | E61: 4 | F61: 5/8" | G61: 58RCSEM08 | H61: 58RCSSM08
C62: 2 | D62: 8mm | E62: 9.5 | F62: 5/8" | G62: 58RCSEM08 | H62: 58RCSSM08 | J62: 58EFBJ
C63: 4 | D63: 8mm | E63: 5.2 | F63: 5/8" | G63: 58RCSEM08 | H63: 58RCSSM08
C64: 1 | D64: 10mm | E64: 15.9 | F64: 5/8" | G64: 58RCSEM08 | H64: 58RCSSM10 | I64: FT-20C
C65: 1 | D65: 11mm | E65: 16.56 | F65: 5/8" | G65: CSS72BLK | H65: CSS72BLK
C66: 0 | D66: 10mm | E66: 16.5 | F66: 5/8" | G66: 58RCSEM10 | H66: 58RCSSM10 | I66: FT-20C
C67: 0 | D67: 8mm | E67: 10.5 | F67: 1/2" | G67: 12CTSM08 | H67: 12CTSM08
C68: 0 | D68: 10mm | E68: 0 | F68: n/a | G68: CTICCM10 | H68: CTICCM10
B70: =ROUND(ROW()/13,0) -> 5 | C70: =CONCATENATE(VLOOKUP(B70,save_meta,4)," ",VLOOKUP(B70,save_meta,2)) -> Discontinuous Rigging Mixed Hi-Mod and Swaged with 10mm 1x19 V1 | D70: Wire Size | E70: Length (m) | F70: Pin (Eye) Size | G70: Top Terminal | H70: Bottom Terminal | I70: Top Toggle | J70: Bottom Toggle
C71: 2 | D71: 10mm | E71: 10.2 | F71: 5/8" | G71: 58RCSEM10 | H71: 58RCSEM10
C72: 2 | D72: 10mm | E72: 5.5 | F72: 3/4" | G72: 34RCSEM10 | H72: 58CTSM10 | J72: 58EFBJ
C73: 2 | D73: 10mm | E73: 15.7 | F73: 5/8" | G73: 58RCSEM10 | H73: 58CTSM10 | J73: 58EFBJ
C74: 2 | D74: 8mm | E74: 4 | F74: 5/8" | G74: 58RCSEM08 | H74: 58CTSM08 | J74: 58EFBJ
C75: 2 | D75: 8mm | E75: 9.5 | F75: 5/8" | G75: 58RCSEM08 | H75: 58CTSM08 | J75: 58EFBJ
C76: 4 | D76: 8mm | E76: 5.2 | F76: 5/8" | G76: 58RCSEM08 | H76: 58CTSM08 | J76: 58EFBJ
C77: 1 | D77: 10mm | E77: 15.9 | F77: 5/8" | G77: 58RCSEM08 | H77: 58CTSM10 | I77: FT-20C
C78: 1 | D78: 11mm | E78: 16.56 | F78: 5/8" | G78: CSS72BLK | H78: CSS72BLK
C79: 0 | D79: 10mm | E79: 16.5 | F79: 5/8" | G79: 58RCSM10 | H79: 58CTEM10 | I79: FT-20C
C80: 0 | D80: 8mm | E80: 10.5 | F80: 1/2" | G80: 58RCSEM08 | H80: 12CTSM08
C81: 0 | D81: 10mm | E81: 0 | F81: n/a | G81: CTICCM10 | H81: CTICCM10
B83: =ROUND(ROW()/13,0) -> 6 | C83: =CONCATENATE(VLOOKUP(B83,save_meta,4)," ",VLOOKUP(B83,save_meta,2)) -> Discontinuous Rigging All swaged with 7/16" V1 | D83: Wire Size | E83: Length (m) | F83: Pin (Eye) Size | G83: Top Terminal | H83: Bottom Terminal | I83: Top Toggle | J83: Bottom Toggle
C84: 2 | D84: 10mm | E84: 10.2 | F84: 5/8" | G84: 58RCSEM10 | H84: 58RCSEM10
C85: 2 | D85: 7/16" | E85: 5.5 | F85: 3/4" | G85: 34RCSE716 | H85: 34RCSS716 | J85: 34EFBJ
C86: 2 | D86: 10mm | E86: 15.7 | F86: 5/8" | G86: 58CTEM10 | H86: 58CTSM10
C87: 2 | D87: 8mm | E87: 4 | F87: 5/8" | G87: 58RCSEM08 | H87: 58RCSSM08
C88: 2 | D88: 8mm | E88: 9.5 | F88: 5/8" | G88: 58CTEM08 | H88: 58CTSM08
C89: 4 | D89: 8mm | E89: 5.2 | F89: 5/8" | G89: 58RCSEM08 | H89: 58RCSSM08
C90: 1 | D90: 10mm | E90: 15.9 | F90: 5/8" | G90: 58RCSEM08 | H90: 58RCSSM10 | I90: FT-20C
C91: 1 | D91: 11mm | E91: 16.56 | F91: 5/8" | G91: CSS72BLK | H91: CSS72BLK
C92: 0 | D92: 10mm | E92: 16.5 | F92: 5/8" | G92: 58RCSM10 | H92: 58CTEM10 | I92: FT-20C
C93: 0 | D93: 8mm | E93: 10.5 | F93: 1/2" | G93: 12CTSM08 | H93: 12CTSM08
C94: 0 | D94: 10mm | E94: 0 | F94: n/a | G94: CTICCM10 | H94: CTICCM10
B96: =ROUND(ROW()/13,0) -> 7 | C96: =CONCATENATE(VLOOKUP(B96,save_meta,4)," ",VLOOKUP(B96,save_meta,2)) -> Continuous Rigging All Hi-Mod | D96: Wire Size | E96: Length (m) | F96: Pin (Eye) Size | G96: Top Terminal | H96: Bottom Terminal | I96: Top Toggle | J96: Bottom Toggle
C97: 2 | D97: 10mm | E97: 10.2 | F97: 5/8" | G97: 58CTEM10 | H97: 58CTEM10
C98: 2 | D98: 7/16" | E98: 5.5 | F98: 3/4" | G98: 34CTE716 | H98: 34CTS716 | J98: 34EFBJ
C99: 2 | D99: 10mm | E99: 15.7 | F99: 5/8" | G99: 58CTEM10 | H99: 58CTSM10 | J99: 0
C100: 2 | D100: 8mm | E100: 4 | F100: 5/8" | G100: 58CTEM08 | H100: 58CTSM08 | J100: 0
C101: 2 | D101: 8mm | E101: 9.5 | F101: 5/8" | G101: 58CTEM08 | H101: 58CTSM08 | J101: 0
C102: 4 | D102: 8mm | E102: 5.2 | F102: 5/8" | G102: 58CTEM08 | H102: 58CTSM08 | J102: 0
C103: 1 | D103: 10mm | E103: 15.9 | F103: 5/8" | G103: 58CTEM10 | H103: 58CTSM10 | I103: FT-20C
C104: 1 | D104: 11mm | E104: 16.56 | F104: 5/8" | G104: CSS72BLK | H104: CSS72BLK
C105: 0 | D105: 10mm | E105: 16.5 | F105: 5/8" | G105: 58CTEM10 | H105: 58CTEM10 | I105: FT-20C
C106: 0 | D106: 8mm | E106: 10.5 | F106: 1/2" | G106: 12CTSM08 | H106: 12CTSM08
C107: 0 | D107: 10mm | E107: 0 | F107: n/a | G107: CTICCM10 | H107: CTICCM10
B109: =ROUND(ROW()/13,0) -> 8 | C109: =CONCATENATE(VLOOKUP(B109,save_meta,4)," ",VLOOKUP(B109,save_meta,2)) -> Discontinuous Rigging All Hi-Mod 10mm-Compact Strand V1 Swaged forestay | D109: Wire Size | E109: Length (m) | F109: Pin (Eye) Size | G109: Top Terminal | H109: Bottom Terminal | I109: Top Toggle | J109: Bottom Toggle
C110: 2 | D110: 10mm | E110: 10.2 | F110: 5/8" | G110: 58CTEM10 | H110: 58CTEM10
C111: 2 | D111: 10mm-D | E111: 5.5 | F111: 5/8" | G111: 58CTEM10-D | H111: 58CTSM10-D
C112: 0 | D112: 10mm | E112: 15.7 | F112: 5/8" | G112: 58CTEM10 | H112: 58CTSM10
C113: 2 | D113: 8mm | E113: 4 | F113: 5/8" | G113: 58CTEM08 | H113: 58CTSM08
C114: 0 | D114: 8mm | E114: 9.5 | F114: 5/8" | G114: 58CTEM08 | H114: 58CTSM08
C115: 4 | D115: 8mm | E115: 5.2 | F115: 5/8" | G115: 58CTEM08 | H115: 58CTSM08
C116: 1 | D116: 10mm | E116: 15.9 | F116: 5/8" | G116: 58CTEM10 | H116: 58CTSM10 | I116: FT-20C | J116: 58EFBJ
C117: 1 | D117: 11mm | E117: 16.56 | F117: 5/8" | G117: CSS72BLK | H117: CSS72BLK
C118: 0 | D118: 10mm | E118: 16.5 | F118: 5/8" | G118: 58CTEM10 | H118: 58CTEM10 | I118: FT-20C
C119: 1 | D119: 8mm | E119: 10.6 | F119: 1/2" | G119: 58RCSEM08 | H119: 58RCSSM08
C120: 0 | D120: 10mm | E120: 0 | F120: n/a | G120: CTICCM10 | H120: CTICCM10
B122: =ROUND(ROW()/13,0) -> 9 | C122: =CONCATENATE(VLOOKUP(B122,save_meta,4)," ",VLOOKUP(B122,save_meta,2)) -> Discontinuous Rigging V1 Price Analysis 10mm Dyrform | D122: Wire Size | E122: Length (m) | F122: Pin (Eye) Size | G122: Top Terminal | H122: Bottom Terminal | I122: Top Toggle | J122: Bottom Toggle
C123: 0 | D123: 10mm | E123: 10.2 | F123: 5/8" | G123: 58CTEM10 | H123: 58CTEM10
C124: 2 | D124: 10mm-D | E124: 5.5 | F124: 5/8" | G124: 58CTEM10-D | H124: 58CTSM10-D
C125: 0 | D125: 10mm | E125: 15.7 | F125: 5/8" | G125: 58CTEM10 | H125: 58CTSM10
C126: 0 | D126: 8mm | E126: 4 | F126: 5/8" | G126: 58CTEM08 | H126: 58CTSM08
C127: 0 | D127: 8mm | E127: 9.5 | F127: 5/8" | G127: 58CTEM08 | H127: 58CTSM08
C128: 0 | D128: 8mm | E128: 5.2 | F128: 5/8" | G128: 58CTEM08 | H128: 58CTSM08
C129: 0 | D129: 10mm | E129: 15.9 | F129: 5/8" | G129: 58CTEM10 | H129: 58CTSM10 | I129: FT-20C | J129: 58EFBJ
C130: 0 | D130: 11mm | E130: 16.56 | F130: 5/8" | G130: CSS72BLK | H130: CSS72BLK
C131: 0 | D131: 10mm | E131: 16.5 | F131: 5/8" | G131: 58CTEM10 | H131: 58CTEM10 | I131: FT-20C
C132: 0 | D132: 8mm | E132: 10.5 | F132: 1/2" | G132: 12CTSM08 | H132: 12CTSM08
C133: 0 | D133: 10mm | E133: 0 | F133: n/a | G133: CTICCM10 | H133: CTICCM10
B135: =ROUND(ROW()/13,0) -> 10 | C135: =CONCATENATE(VLOOKUP(B135,save_meta,4)," ",VLOOKUP(B135,save_meta,2)) -> Discontinuous Rigging V1 Price Analysis 7/16 1x19 | D135: Wire Size | E135: Length (m) | F135: Pin (Eye) Size | G135: Top Terminal | H135: Bottom Terminal | I135: Top Toggle | J135: Bottom Toggle
C136: 0 | D136: 10mm | E136: 10.2 | F136: 5/8" | G136: 58CTEM10 | H136: 58CTEM10
C137: 2 | D137: 7/16" | E137: 5.5 | F137: 5/8" | G137: 34CTE716 | H137: 34CTS716
C138: 0 | D138: 10mm | E138: 15.7 | F138: 5/8" | G138: 58CTEM10 | H138: 58CTSM10
C139: 0 | D139: 8mm | E139: 4 | F139: 5/8" | G139: 58CTEM08 | H139: 58CTSM08
C140: 0 | D140: 8mm | E140: 9.5 | F140: 5/8" | G140: 58CTEM08 | H140: 58CTSM08
C141: 0 | D141: 8mm | E141: 5.2 | F141: 5/8" | G141: 58CTEM08 | H141: 58CTSM08
C142: 0 | D142: 10mm | E142: 15.9 | F142: 5/8" | G142: 58CTEM10 | H142: 58CTSM10 | I142: FT-20C | J142: 58EFBJ
C143: 0 | D143: 11mm | E143: 16.56 | F143: 5/8" | G143: CSS72BLK | H143: CSS72BLK
C144: 0 | D144: 10mm | E144: 16.5 | F144: 5/8" | G144: 58CTEM10 | H144: 58CTEM10 | I144: FT-20C
C145: 0 | D145: 8mm | E145: 10.5 | F145: 1/2" | G145: 12CTSM08 | H145: 12CTSM08
C146: 0 | D146: 10mm | E146: 0 | F146: n/a | G146: CTICCM10 | H146: CTICCM10
B148: =ROUND(ROW()/13,0) -> 11 | C148: =CONCATENATE(VLOOKUP(B148,save_meta,4)," ",VLOOKUP(B148,save_meta,2)) -> Discontinuous Rigging All Hi-Mod 10mm Compact Strand V1 w/o Forestay | D148: Wire Size | E148: Length (m) | F148: Pin (Eye) Size | G148: Top Terminal | H148: Bottom Terminal | I148: Top Toggle | J148: Bottom Toggle
C149: 2 | D149: 10mm | E149: 10.2 | F149: 5/8" | G149: 58CTEM10 | H149: 58CTEM10
C150: 2 | D150: 10mm-D | E150: 5.5 | F150: 5/8" | G150: 58CTEM10-D | H150: 58CTSM10-D
C151: 2 | D151: 10mm | E151: 15.7 | F151: 5/8" | G151: 58CTEM10 | H151: 58CTSM10
C152: 2 | D152: 8mm | E152: 4 | F152: 5/8" | G152: 58CTEM08 | H152: 58CTSM08
C153: 2 | D153: 8mm | E153: 9.5 | F153: 5/8" | G153: 58CTEM08 | H153: 58CTSM08
C154: 4 | D154: 8mm | E154: 5.2 | F154: 5/8" | G154: 58CTEM08 | H154: 58CTSM08
C155: 0 | D155: 10mm | E155: 15.9 | F155: 5/8" | G155: 58CTEM10 | H155: 58CTSM10 | I155: FT-20C | J155: 58EFBJ
C156: 1 | D156: 11mm | E156: 16.56 | F156: 5/8" | G156: CSS72BLK | H156: CSS72BLK
C157: 0 | D157: 10mm | E157: 16.5 | F157: 5/8" | G157: 58CTEM10 | H157: 58CTEM10 | I157: FT-20C
C158: 0 | D158: 8mm | E158: 10.5 | F158: 1/2" | G158: 12CTSM08 | H158: 12CTSM08
C159: 0 | D159: 10mm | E159: 0 | F159: n/a | G159: CTICCM10 | H159: CTICCM10
B161: =ROUND(ROW()/13,0) -> 12 | C161: =CONCATENATE(VLOOKUP(B161,save_meta,4)," ",VLOOKUP(B161,save_meta,2)) -> Discontinuous Rigging All Hi-Mod 10mm-Compact Strand V1 | D161: Wire Size | E161: Length (m) | F161: Pin (Eye) Size | G161: Top Terminal | H161: Bottom Terminal | I161: Top Toggle | J161: Bottom Toggle
C162: 2 | D162: 10mm | E162: 10.2 | F162: 5/8" | G162: 58CTEM10 | H162: 58CTEM10
C163: 2 | D163: 10mm-D | E163: 5.5 | F163: 5/8" | G163: 58CTEM10-D | H163: 58CTSM10-D
C164: 0 | D164: 10mm | E164: 15.7 | F164: 5/8" | G164: 58CTEM10 | H164: 58CTSM10
C165: 2 | D165: 8mm | E165: 4 | F165: 5/8" | G165: 58CTEM08 | H165: 58CTSM08
C166: 0 | D166: 8mm | E166: 9.5 | F166: 5/8" | G166: 58CTEM08 | H166: 58CTSM08
C167: 4 | D167: 8mm | E167: 5.2 | F167: 5/8" | G167: 58CTEM08 | H167: 58CTSM08
C168: 1 | D168: 10mm | E168: 15.9 | F168: 5/8" | G168: 58CTEM10 | H168: 58CTSM10 | I168: FT-20C | J168: 58EFBJ
C169: 1 | D169: 11mm | E169: 16.56 | F169: 5/8" | G169: CSS72BLK | H169: CSS72BLK
C170: 0 | D170: 10mm | E170: 16.5 | F170: 5/8" | G170: 58CTEM10 | H170: 58CTEM10 | I170: FT-20C
C171: 1 | D171: 8mm | E171: 10.6 | F171: 1/2" | G171: 12CTEM08 | H171: 58CTSM08
C172: 0 | D172: 10mm | E172: 0 | F172: n/a | G172: CTICCM10 | H172: CTICCM10
